Workbook

Sheet Introduction
D1: INTRODUCTION | J1: DISCLAIMER: The Louisiana Department of Transportation and Development (LaDOTD) makes these documents and software available on an "as is" basis. All warranties and representations of any kind with regard to said documents and software are disclaimed, including the implied warranties of merchantability and fitness for a particular use. Under no circumstances will the LaDOTD, or any of its officers or employees be liable for any consequential, incidental, special or exemplary damages even if apprised of the likelihood of such damages occurring. The LaDOTD does not warrant the documents and software against deficiencies of any kind. The use of any of these documents and software for work that is under contract with the LaDOTD does not relieve the contractor from any obligations assumed by the contract, or from complete and proper fulfillment of the terms of the contract, nor does it entitle the contractor to compensation for damages or loss which could be attributed to such use. Information on this web site is posted to aid in the efficient dissemination of information to designers. The data contained within this web site is periodically updated. Designers are responsible to be aware of any updates and incorporate significant changes into their final design.
D3: Date: | E3: 2018-01-29
D4: Version: | E4: 1.0
C6: Developed By: | E6: Ohio DOT
B7: Modified By: | E7: CBC Engineers under LADOTD contract
C8: Reviewed By: | E8: Qiming Chen
C10: Maintained By: | E10: Qiming Chen
D11: Email: | E11: qiming.chen@la.gov
D12: Phone: | E12: 225-379-1412
A14: Genearl: This spreadsheet is designed to aid a qualified engineer in completing the bridge load rating analysis of a corrugated metal pipe cuvlert structure (DOTD culvert structure type: STLRCH, ALURCH, STLPIP, and ALUPIP with corrugation). Sound engineering judgement and familiariry with the analysis are required to choose appropriate input values and to recognize situations that may deviate from the standard case on which these spreadsheets based. This spreadsheet is comprised of six worksheets: Introduction; LRFR Input; Output HL93, LA3S2, LA3, 3-3; Output HL93, LA6, LA8; Output HL93, NRL, SU4, SU5; Output HL93, NRL, SU6, SU7; Output HL93, OFRD1, 2 & 3; Reference tables; section property table; seam strength table; and NCSPA Design Data Sheet No 19. The LRFR Input worksheet is protected. The passoword is "Rating".
A16: LRFR Input Worksheet: Yellow shaded cells are required input, please input a appropriate value or choose a appropriate option from the drop-down list.
A18: Output HL93, LA3S2, LA3, 3-3; Output HL93, LA6, LA8; Output HL93, NRL, SU4, SU5; Output HL93, NRL, SU6, SU7; Output HL93, OFRD1, 2 & 3; Worksheets: These worksheets will be updated automatically after inputing the appropriate values in the Input Worksheet. These worksheet contains rating facotrs of the structure defined in the Input Worksheet for different types of vehicles.
A20: Reference Tables Worksheet: This worksheet contains tabulated values that are accessed using lookup funcions based on selections from the drop down cells in the LRFR input worksheet.
A22: Section Property Tables Worksheet: This worksheet is a reference able that is reproduced from AASHTO LRFD Bridge Design Specs, Section 12, Appendix A12. This worksheet is used to determine the Area (As), Radius of Gyration (r) and Moment of Inertia (I).
A24: Seam Strength Tables Worksheet: This worksheet is a reference table that is reproduced from AASHTO LRFD Bridge Design Specs, Section 12, Appendix A12.
A26: NCSPA Design Data Sheet No 19Worksheet: This worksheet is a full reproduction of the National Corrugated Steel Pipe Association data sheet for load rating and structural evaluation for in-service corrugated steel structures.
A28: References:
A29: AASHTO LRFD Bridge Design Specifications, Seventh Edition, Section 3, 4 & 12.
A30: NCSPA Design Data Sheet No. 19.
A31: LaDOTD Bridge Design & Evaluation Manual REV 7, Section 6.
A32: AASHTO Manual for Bridge Evaluation, Second Edition.

Sheet LRFR Input
B2: Structure No: | D2: Bridge Name: | E2: LADOTD
B3: Route/Crossing: | D3: ADTT: | E3: 630
B4: Year Built: | C4: 1993 | D4: Load Rated By: | E4: D.N | F4: Date: | G4: 2013-01-14
B5: Structure Type: | C5: Corrugated Metal Pipe Arch | D5: Checked By: | E5: M.H. | F5: Date: | G5: 2013-01-14
B7: CORRUGATED METAL STRUCTURE (CIRCULAR & PIPE ARCH) & ARCHES
K11: yellow shaded areas are required input.
K12: input a value or choose a option from a drop-down list
B29: * For unsymmetrical structures, structures deflected more than 5% from design shape, or those that show localized distortions require that the actual maximum radius be determined in those distorted areas as show above. Use two times the actual maximum radius rather than the span in structural design checks. Typically this provides a conservative evaluation of the structure. Calculate maximum existing top radius by taking measurements around the upper periphery of the culvert using a ruler of length "P" to obtain values of "M". This should be done at selected stations along length of culvert, particularly at locations with noticeable sag.
B32: LRFR of In-Service, Corrugated Metal Pipe Structures
B34: (do not use this spreadsheet to load rate Structural Plate Box Culverts)
B36: Structure Information (from existing bridge plans & field measurements):
D37: ("←" : choose from a drop-down list)
B38: Structure Type (to determine Minimum Cover): | D38: Corrugated Metal Pipe | I38: ←
B39: Seam Type (to determine Seam Strength): | D39: Helical pipe w/ lock seam or fully welded seam | I39: ←
B40: Structure Category (based on NCSPA Design Data Sheet No. 19) | D40: Unsymmetrical or deflect over 5% (NCSPA design data sheet No. 19, II. A. 2.) | I40: ←
B41: Depth of Fill "H" (ft) = (the lowest cover over the structure in a traffic area) | D41: 2.6 | F41: =IF(AND(D41>8,D41>D42),"Based on AASHTO LRFD 3.6.1.2.6, The effects of live load maybe neglected when H>8' and H>Span Length, no need for LRFR.","") -> 
B42: Span Length "S" (ft) = | D42: 11.42
B43: Rise "R" (ft) = | D43: 7.25
B44: Longitudinal Length of Structure "L" (ft) = | D44: 70.5
B45: Determine Actual Top Radius "Rt" (ft) = (can be determined by field measurements or hand calculations) | D45: 9.415
B46: Metal Corrugation & Gage Information: | D46: Metal Type | E46: Steel | I46: ←
D47: Corrugation (if known) | E47: 3 x 1 (corrugated steel pipe) | I47: ←
D48: Gage number (if known) | E48: 10 | I48: ←
D49: c (in) = | F49: Note: if corrugation & gage number are known, leave the input cells for "c", "d" & "t" blank; if corrugation & gage number are unknown, field measurements of "c", "d" & "t" are required.
D50: d (in) =
D51: t (in) =
B52: Pipe Crown Deflection ** (if any) = | D52: 0.05
B53: Metal Loss based on materials field evaluation (if any) = | D53: 0
B54: ** reduction in rise divided by the span length from design shape in the unit of percentage
B56: Load Rating Input Sheet
B57: Pipe Cross-Section Properties | C57: As (in2/ft) = | D57: ='section property tables'!I11 -> 2.008 | E57: input these values based on metal type, corrugation, gage number or pipe wall thickness, see tables in worksheet "section property tables".
C58: r (in) = | D58: ='section property tables'!J11 -> 0.3472
C59: I x 10-3 (in4/in) = | D59: ='section property tables'!K11 -> 20.183
B61: Pipe Seam Strength | C61: Seam Strength (k/ft) = | D61: 0 | E61: input the seam strength value based on metal type, corrugation, gage number or pipe wall thickness, see tables in worksheet "seam strength tables"
B65: Backfill | C65: δ = Soil density (k/ft3) = | D65: 0.12
C66: φE = Factor for Distribution of Live Load with Depth of Fill based on Backfill Type (per AASHTO LRFD 3.6.1.2.6) | D66: 1.15 | E66: 1.15 used here for select granular backfill, change the factor φE to 1.0 for all other cases.
B70: Load Factors | C70: gDC (Dead Load) = | D70: 1.25 | E70: input the load factors based on the "LRFR Load Factors" table on the right | K70: LRFR Load Factors
C71: gEV (Vertical Earth Pressure for CMPs) = | D71: 1.95 | K71: Bridge Type | L71: Limit State | M71: Dead Load gDC | N71: Vertical Earth Pressure EV for CMPs | O71: HL-93 Loading | Q71: Legal Loads | R71: Spec. Hauling Loads | S71: Routine (Annual) Permit Loads
C72: gLL (HL-93 Loading - Inventory) = | D72: 1.75 | O72: Inventory gLL | P72: Operating gLL | Q72: Operating gLL | R72: Operating gLL | S72: Operating gLL
C73: gLL (HL-93 Loading - Operating) = | D73: 1.35 | K73: Steel or Aluminum | L73: Strength I | M73: 1.25 | N73: 1.95 | O73: 1.75 | P73: 1.35 | Q73: Unknown ADTT - 1.80 | R73: Unknown ADTT - 1.60 | S73: - | T73: -
C74: gLL (Legal Loads - Operating - based on ADTT) = | D74: 1.8 | Q74: ADTT ≥ 5000 - 1.80 | R74: ADTT ≥ 5000 - 1.60
C75: gLL (Special Hauling Loads - Operating - based on ADTT) = | D75: 1.6 | Q75: ADTT = 1000 - 1.65 | R75: ADTT = 1000 - 1.40
C76: gLL (Routine Permit OFRD1 - Operating - based on ADTT) = | D76: 1.47 | Q76: ADTT ≤ 100 - 1.40 | R76: ADTT ≤ 100 - 1.15
C77: gLL (Routine Permit OFRD2 - Operating - based on ADTT) = | D77: 1.38 | K77: Steel or Aluminum | L77: Strength II | M77: 1.25 | N77: 1.95 | O77: - | P77: - | Q77: - | R77: - | S77: Weight up to 100 kips | T77: Weight ≥ 150 kips
C78: gLL (Routine Permit OFRD3 - Operating - based on ADTT) = | D78: 1.3 | S78: ADTT ≥ 5000 - 1.80 | T78: ADTT ≥ 5000 - 1.30
S79: ADTT = 1000 - 1.60 | T79: ADTT = 1000 - 1.20
S80: ADTT ≤ 100 - 1.40 | T80: ADTT ≤ 100 - 1.10

Sheet Output HL93, LA3S2, LA3, 3-3
A2: Structure No: | B2: ='LRFR Input'!C2 -> 0 | C2: Bridge Name: | D2: ='LRFR Input'!E2 -> LADOTD
A3: Route/Crossing: | B3: ='LRFR Input'!C3 ->  | C3: ADTT: | D3: ='LRFR Input'!E3 -> 630
A4: Year Built: | B4: ='LRFR Input'!C4 -> 1993 | C4: Load Rated By: | D4: ='LRFR Input'!E4 -> D.N | E4: Date: | F4: ='LRFR Input'!G4 -> 2013-01-14
A5: Structure Type: | B5: ='LRFR Input'!C5 -> Corrugated Metal Pipe Arch | C5: Checked By: | D5: ='LRFR Input'!E5 -> M.H. | E5: Date: | F5: ='LRFR Input'!G5 -> 2013-01-14
A7: LRFR of In-Service, Corrugated Metal Pipe Structures
A8: Based on AASHTO LRFD Bridge Design Specifications, Section 3, 4 & 12 & NCSPA Design Data Sheet No. 19 & ODOT Bridge Design Manual 2004 (effective 10-15-2010), Section 900 & 2008 AASHTO MBE
A9: (do not use this spreadsheet to load rate Structural Plate Box Culverts)
A11: A. Design Dimensions
A12: 1. For typical structures, use the actual field measured span for calculations.
A13: 2. For unsymmetrical structures or those deflected over 5%:
A14: a. use 2 x the top radius (2 Rt) in lieu of span for calculations.
A15: b. base critical buckling stress calculations on the theoretical design span, reducing the resulting allowable buckling stress by the appropriate multiplier to account for deflection " f " (NCSPA Design Data Sheet No. 19, Figure B.1.1).
A17: 3. For all long span structures (horizontal ellipse, low and high profile arches, inverted pear shapes and pear arches), as well as other horizontal ellipses, use 2 x actual top radius (2Rt) in all cases.
B20: For typical structures : | C20: Design Span = Actual Span "S" (ft) = | E20: ='LRFR Input'!D42 -> 11.42
B22: For unsymmetrical or deflect more than 5% structures: | C22: Design Span (ft) = 2Rt = | E22: =2*'LRFR Input'!D45 -> 18.83
C23: Pipe Crown Deflection = | E23: ='LRFR Input'!D52 -> 0.05
C24: Buckling Strength Reduction Factor, f * = | E24: =-5.6*E23+0.95 -> 0.67
B25: * reduction factor f is based on NCSPA Design Data Sheet No 19, II Structural Evaluation A.2.b & Appendix B.1, Figure B.1.1 for Unsymmetrical structures or structures deflected over 5% only.
B28: long span structures: | C28: Design Span (ft) = 2Rt = | E28: =2*'LRFR Input'!D45 -> 18.83
A30: Structure Category: | C30: ='LRFR Input'!D40 -> Unsymmetrical or deflect over 5% (NCSPA design data sheet No. 19, II. A. 2.)
A32: Then, Span Length used in Load Rating Calculation = | D32: =IF(C30 ="Typical (NCSPA design data sheet no. 19, II. A. 1.)", E20, E22) -> 18.83 | E32: ft
A33: Then, Rt used in Load Rating Calculation = | D33: ='LRFR Input'!D45:E45 -> 9.415 | E33: ft
A34: B. Design Properties
A36: Conduits Mechanical & Section Properties:
A37: Mechanical Properties:
B38: Metal Type: | C38: ='LRFR Input'!E46 -> Steel
B39: Fy = Minimum Yield Point of the Metal | E39: =VLOOKUP(C38,'Reference tables'!C32:F36,3,FALSE) -> 33 | F39: ksi
B40: Fu = Minimum Tensile Strength of the Metal | E40: =VLOOKUP(C38,'Reference tables'!C32:F36,2,FALSE) -> 45 | F40: ksi
B41: Em = Modulus of elasticity of metal | E41: =VLOOKUP(C38,'Reference tables'!C32:F36,4,FALSE) -> 29000 | F41: ksi
A43: Section Properties:
A44: Corrugation: | B44: ='LRFR Input'!E47 -> 3 x 1 (corrugated steel pipe)
A45: Gage Number: | B45: ='LRFR Input'!E48 -> 10
A46: c (in) = | B46: =IF(B44="N/A",'LRFR Input'!E49, "") -> 
A47: d (in) = | B47: =IF(B44="N/A",'LRFR Input'!E50, "") -> 
A48: t (in) = | B48: =IF(B45="N/A", 'LRFR Input'!E51, VLOOKUP(B45,'Reference tables'!B39:C48,2,FALSE)) -> 0.138
A50: As (in2/ft) = | B50: ='LRFR Input'!D57 -> 2.008
A51: r (in) = | B51: ='LRFR Input'!D58 -> 0.3472
A52: I x 10-3 (in4/in) = | B52: ='LRFR Input'!D59 -> 20.183
A55: C. Design Calculations:
B56: Structure Type: | C56: ='LRFR Input'!D38 -> Corrugated Metal Pipe
B57: Seam Type: | C57: ='LRFR Input'!D39 -> Helical pipe w/ lock seam or fully welded seam
B58: Longitudinal Length of Structure "L" (ft) = | E58: ='LRFR Input'!D44 -> 70.5
B59: AASHTO minimum cover, h (ft) = | E59: =E28/8 -> 2.35375 | F59: =IF(AND(C56="Long Span Structural Plate (AASHTO 12.7)",B48<'Reference tables'!C17), "see * below", "") -> 
B60: Height of cover above crown "H" (ft) = | E60: ='LRFR Input'!D41 -> 2.6 | F60: =IF(E60>=E59, "", "! H<h, cover not deep enough!") -> 
B61: φloss = Section Properties reduction factor on the basis of metal loss from the materials field evaluation = | E61: =1-'LRFR Input'!D53 -> 1
B62: φ1 = Resistance Factor for wall area and buckling (Table 12.5.5-1) | E62: =IF('LRFR Input'!D38="Long Span Structural Plate",0.67,1) -> 1
B63: φ2 = Resistance Factor for seam strength (Table 12.5.5-1) | E63: =IF('LRFR Input'!D39="Annular pipe w/ spot welded, riveted or bolted seam", 0.67, IF('LRFR Input'!D39="Helical pipe w/ lock seam or fully welded seam", 1, "")) -> 1
B64: δ = Soil density (k/ft3) | E64: ='LRFR Input'!D65 -> 0.12
B65: k = soil stiffness factor = | E65: 0.22
B66: φE = Factor for Distribution of Live Load with Depth of Fill based on Backfill Type (per AASHTO LRFD 3.6.1.2.6)= | E66: ='LRFR Input'!D66 -> 1.15
A69: Calculate the fcr (critical buckling stress) : | C69: (AASHTO LRFD 12.7.2.4)
A71: if:
A73: if:
A75: Compare: | B75: S (in) = | C75: =D32*12 -> 225.96 | D75: =IF(C75>F75, ">", "<") -> > | F75: =(B51/E65)*(24*E41*1000/(E40*1000))^0.5 -> 196.2706671
A77: Therefore, | B77: fcr = | C77: =IF(C75<F75, (E40*1000-((E40*1000)^2/(48*E41*1000))*(E65*C75/B51)^2)/1000, (12*E41*1000/(E65*C75/B51)^2)/1000) -> 16.97579739 | D77: ksi
A79: Calculate the Tcap (thrust capacity of the wall) :
B80: Seam Strength (k/ft) = | C80: ='LRFR Input'!D61 -> 0
B82: Tcap = less of: | C82: 1. wall yield strength = φ1 φloss Fy A = | F82: =E39*B50*E62*E61 -> 66.264
C83: 2. wall buckling strength = f φ1 φloss fcr A = | F83: =IF('LRFR Input'!D38="Long Span Structural Plate", "N/A", IF(C30="Unsymmetrical or deflect over 5% (NCSPA design data sheet No. 19, II. A. 2.)", C77*B50*E62*E61*E24, C77*B50*E62*E61)) -> 22.83855878 | I83: =IF('LRFR Input'!D38="Long Span Structural Plate", "buckling not applicable to long spans", "") -> 
C84: 3. seam strength = φ2 x (seam strength) = | F84: =E63*C80 -> 0
A86: Therefore, | B86: Tcap = | C86: =IF('LRFR Input'!D39="Annular pipe w/ spot welded, riveted or bolted seam", MIN(F82,F83,F84), MIN(F82,F83)) -> 22.83855878 | D86: k/ft
A88: Calculate the TE (pipe wall thrust due to earth cover) :
B89: TE = higher value of : | C89: 1. δ H (S/2) = | D89: =E64*E60*D32/2 -> 2.93748 | E89: k/ft
C90: 2. δ H Rt = | D90: =E64*E60*D33 -> 2.93748 | E90: k/ft
A92: Therefore, | B92: TE = | C92: =MAX(D89,D90) -> 2.93748 | D92: k/ft
A94: Calculate the T(L+I) (pipe wall thrust due to live load plus impact) :
B95: T(L+IM) = higher value of : | C95: 1. ρ (L+IM) (S/2) = | D95: k/ft
C96: 2. ρ (L+IM) Rt = | D96: k/ft
B98: Based on AASHTO LRFD 3.6.2.2:
B99: Live load Dynamic Load Allowance, IM = | D99: 33(1.0-0.125 DE) ≥ 0%
B100: where, | C100: DE = the minimum depth of earth cover above the structure (ft)
C102: For this structure: Depth of Fill, DE = H= | D102: =E60 -> 2.6 | E102: ft
C103: IM = | D103: =IF(33*(1-0.125*D102)/100>0,33*(1-0.125*D102)/100,0) -> 0.22275
C104: (1+IM) = | D104: =1+D103 -> 1.22275
A106: Case A: | B106: Depth of Fill, H < 2 ft
B107: Calculations will be based on AASHTO LRFD 4.6.2.10.1 & 2 (case 1: traffic travels parallel to span):
B108: When Depths of Fill of Culverts < 2.0 ft,
B109: Eaxle= 96+1.44 S = | D109: =(96+1.44*D32) -> 123.1152 | E109: in
B110: Therefore, Ewheel = ½ Eaxle = | D110: =D109/24 -> 5.1298 | E110: ft
C111: Espan = LT + φE (H) = | D111: same as case B, see calculations below
B112: Where,
C113: Ewheel = equivalent distribution width perpendicular to span, = WD
C114: WD = Distributed load width/ per wheel load
C115: Espan = equivalent distribution length parallel to span, = LD
C116: LD = Distributed load length/ per wheel load
A117: Case B: | B117: Depth of Fill, H ≥ 2 ft
B118: Calculations will be based on AASHTO LRFD 3.6.1.2.5 & 6:
A130: Where, WT = Tire contact width, LT = Tire contact length, WD = Distributed load width, LD = Distributed load length
A132: The surface tire contact area for HL-93 loading (per AASHTO LRFD 3.6.1.2.5):
A133: WT = 20" = | B133: =20/12 -> 1.666666667 | C133: ft
A134: LT = 10" = | B134: =10/12 -> 0.8333333333 | C134: ft
A135: The surface tire contact area for LA3S2, LA3, 3-3 (per AASHTO LRFD C3.6.1.2.5 Guideline):
A136: WT (in) = | B136: P/0.8
A137: LT (in) = | B137: 6.4g(1+IM/100)
A138: where, | B138: p = wheel load (kips)
B139: g = Load Factor for Legal Loads gLL = | D139: ='LRFR Input'!D74 -> 1.8
B140: IM = dynamic load allowance percent
A141: So, | C141: HL-93 Tandem | D141: LA Type 3-S2 | E141: LA Type 3 | F141: Type 3-3
B142: P "heavy axle" wheel load (kips) = | C142: 12.5 | D142: 8 | E142: 8 | F142: 7
B143: WT (ft) = | C143: =B133 -> 1.666666667 | D143: =(D142/0.8)/12 -> 0.8333333333 | E143: =(E142/0.8)/12 -> 0.8333333333 | F143: 0.7291666667
B144: LT (ft) = | C144: =B134 -> 0.8333333333 | D144: =6.4*$D$104/12*$D$139 -> 1.17384 | E144: =6.4*$D$104/12*$D$139 -> 1.17384 | F144: =6.4*$D$104/12*$D$139 -> 1.17384
A146: Distribution of wheel loads through earth fills (per AASHTO LRFD 3.6.1.2.6):
A148: for HL-93 Design Truck:
B149: WD = 1.67+φEH= | C149: =20/12+E66*D102 -> 4.656666667 | D149: ft
B150: LD = 0.83 + φEH = | C150: =10/12+E66*D102 -> 3.823333333 | D150: ft
A151: for HL-93 Tandem, LA3S2, LA3, 3-3 Trucks:
C152: HL-93 Tandem | D152: LA Type 3-S2 | E152: LA Type 3 | F152: Type 3-3
B153: WD = WT + φEH = | C153: =C143+$E$66*$E$60 -> 4.656666667 | D153: 3.823333333 | E153: 3.823333333 | F153: 3.719166667
B154: LD = LT + φEH = | C154: 3.823333333 | D154: 4.16384 | E154: 4.16384 | F154: 4.16384
C156: Fill depth, H = | D156: =D102 -> 2.6 | E156: =IF(D156<2, "H<2', Case A applied", IF(D156>=2, "H>=2', Case B applied", "")) -> H>=2', Case B applied
C157: Structure Total Length, L = | D157: ='LRFR Input'!D44 -> 70.5 | E157: ft
C158: [ if WD (total) > L, use L = WD (total) in the calculations ]
B159: HL-93 Truck | C159: HL-93 Tandem | D159: LA Type 3-S2 | E159: LA Type 3 | F159: Type 3-3
A160: Heavy Axle Load (lbs) | B160: 32000 | C160: 25000 | D160: 16000 | E160: 16000 | F160: 14000
A161: P (1+ IM) (lbs) = | B161: =B160/2*$D$104 -> 19564 | C161: =C160/2*$D$104 -> 15284.375 | D161: =D160/2*$D$104 -> 9782 | E161: =E160/2*$D$104 -> 9782 | F161: =F160/2*$D$104 -> 8559.25
A162: * Saxle 1 (ft) = | B162: 0 | C162: 4 | D162: 4 | E162: 4 | F162: 4
A163: * Saxle 2 (ft) = | B163: 0 | C163: 0 | D163: 0 | E163: 0 | F163: 0
A164: wheel spacing on axle | B164: 6 | C164: 6 | D164: 6 | E164: 6 | F164: 6
A165: WD (ft) = | B165: =IF($D$156<2, $D$110, C149) -> 4.656666667 | C165: =IF($D$156<2, $D$110, C153) -> 4.656666667 | D165: =IF($D$156<2, $D$110, D153) -> 3.823333333 | E165: =IF($D$156<2, $D$110, E153) -> 3.823333333 | F165: =IF($D$156<2, $D$110, F153) -> 3.719166667
A166: LD (ft) = | B166: =C150 -> 3.823333333 | C166: =C154 -> 3.823333333 | D166: =D154 -> 4.16384 | E166: =E154 -> 4.16384 | F166: =F154 -> 4.16384
A167: WD (total) = | B167: =IF(B165>B164, MIN(B165+B164,$D$157), MIN(B165,$D$157) ) -> 4.656666667 | C167: =IF(C165>C164, MIN(C165+C164, $D$157), MIN(C165,$D$157)) -> 4.656666667 | D167: =IF(D165>D164, MIN(D165+D164, $D$157), MIN(D165,$D$157)) -> 3.823333333 | E167: =IF(E165>E164, MIN(E165+E164, D157), MIN(E165,D157)) -> 3.823333333 | F167: =IF(F165>F164, MIN(F165+F164, D157), MIN(F165,D157)) -> 3.719166667
A168: LD (total) = | B168: =IF(B166>B162, B166+B162, B166) -> 3.823333333 | C168: =IF(C166>C162, C166+C162, C166) -> 3.823333333 | D168: =IF(D166>D162, D166+D162, D166) -> 8.16384 | E168: =IF(E166>E162, E166+E162, E166) -> 8.16384 | F168: =IF(F166>F162, F166+F162, F166) -> 8.16384
A169: * AD (ft2) = | B169: =B167*B168 -> 17.80398889 | C169: =C167*C168 -> 17.80398889 | D169: =D167*D168 -> 31.2130816 | E169: =E167*E168 -> 31.2130816 | F169: =F167*F168 -> 30.3626816
A170: * PD (kips) = | B170: =IF(AND(B167>B165,B168>B166),4*B161/1000,IF(OR(B167>B165,B168>B166),2*B161/1000,B161/1000)) -> 19.564 | C170: =IF(AND(C167>C165,C168>C166),4*C161/1000,IF(OR(C167>C165,C168>C166),2*C161/1000,C161/1000)) -> 15.284375 | D170: =IF(AND(D167>D165,D168>D166),4*D161/1000,IF(OR(D167>D165,D168>D166),2*D161/1000,D161/1000)) -> 19.564 | E170: =IF(AND(E167>E165,E168>E166),4*E161/1000,IF(OR(E167>E165,E168>E166),2*E161/1000,E161/1000)) -> 19.564 | F170: =IF(AND(F167>F165,F168>F166),4*F161/1000,IF(OR(F167>F165,F168>F166),2*F161/1000,F161/1000)) -> 17.1185
A171: ρ (L+IM) = PD/AD = | B171: =B170/B169 -> 1.098854876 | C171: =C170/C169 -> 0.8584803718 | D171: =D170/D169 -> 0.6267884809 | E171: =E170/E169 -> 0.6267884809 | F171: =F170/F169 -> 0.5638006625
A172: T(L+IM) (k/ft) = | B172: =MAX(B171*$D$32/2, B171*$D$33) -> 10.34571866 | C172: =MAX(C171*$D$32/2, C171*$D$33) -> 8.0825927 | D172: =MAX(D171*$D$32/2, D171*$D$33) -> 5.901213548 | E172: =MAX(E171*$D$32/2, E171*$D$33) -> 5.901213548 | F172: =MAX(F171*$D$32/2, F171*$D$33) -> 5.308183237
A173: * Saxle 1 = distance to the 1st adjacent heavy axle load, if the spacing is > 4', Saxle1 = 0.
A174: Saxle 2 = distance to the 2nd adjacent heavy axle load, if the spacing is > 4', Saxle2 = 0.
A175: AD = Total Load Distributed Area
A176: PD = Total Load being Distributed
A177: Transverse pressure overlaps are considered. Longitudinal pressure overlaps are considered for two adjacent heavy axle loads when the Saxle is ≤ 4 feet.
A180: D. Load Rating Factors for Ring Compression Structures:
A181: 1. Operating Load Rating Factor (RFO):
A182: a. RFO based on wall strength
A185: b. RFO based on minimum cover requirements
B188: Where, | D188: =IF((2.36*E60/D32+0.528)>1, 1, 2.36*E60/D32+0.528) -> 0.8538629846
B189: So, RFO-C = | C189: =E60^2/(D188*(E59)^2) -> 1.429018472
A191: Operating Load Rating Factors, RFO
B192: HL-93 Truck | C192: HL-93 Tandem | D192: LA Type 3-S2 | E192: LA Type 3 | F192: Type 3-3
A193: Tcap | B193: =$C$86 -> 22.83855878 | C193: =$C$86 -> 22.83855878 | D193: 22.83855878 | E193: 22.83855878 | F193: 22.83855878
A194: TE | B194: =$C$92 -> 2.93748 | C194: =$C$92 -> 2.93748 | D194: 2.93748 | E194: 2.93748 | F194: 2.93748
A195: gEV | B195: ='LRFR Input'!D71 -> 1.95 | C195: ='LRFR Input'!D71 -> 1.95 | D195: ='LRFR Input'!D71 -> 1.95 | E195: ='LRFR Input'!D71 -> 1.95 | F195: ='LRFR Input'!D71 -> 1.95
A196: T(L+IM) | B196: =B172 -> 10.34571866 | C196: =C172 -> 8.0825927 | D196: 5.901213548 | E196: 5.901213548 | F196: 5.308183237
A197: gLL | B197: ='LRFR Input'!D73 -> 1.35 | C197: ='LRFR Input'!D73 -> 1.35 | D197: ='LRFR Input'!D74 -> 1.8 | E197: ='LRFR Input'!D74 -> 1.8 | F197: ='LRFR Input'!D74 -> 1.8
A198: RFO-W | B198: =(B193-B195*B194)/(B196*B197) -> 1.225088822 | C198: =(C193-C195*C194)/(C196*C197) -> 1.568113692 | D198: 1.610824305 | E198: 1.610824305 | F198: =(F193-F195*F194)/(F196*F197) -> 1.79078562
A199: RFO-C | B199: =$C$189 -> 1.429018472 | C199: =$C$189 -> 1.429018472 | D199: 1.429018472 | E199: 1.429018472 | F199: 1.429018472
A200: RFO | B200: =MIN(B198,$B$199) -> 1.225088822 | C200: =MIN(C198,$B$199) -> 1.429018472 | D200: 1.429018472 | E200: 1.429018472 | F200: 1.429018472
A203: 2. Inventory Load Rating Factor (RFi):
A204: a. RFi based on wall strength
A207: b. RFi based on minimum cover requirements
A210: Inventory Load Rating Factor, RFi
B211: HL-93 Truck | C211: HL-93 Tandem
A212: Tcap | B212: =B193 -> 22.83855878 | C212: =C193 -> 22.83855878
A213: TE | B213: =B194 -> 2.93748 | C213: =C194 -> 2.93748
A214: gEV | B214: ='LRFR Input'!D71 -> 1.95 | C214: ='LRFR Input'!D71 -> 1.95
A215: T(L+IM) | B215: =B196 -> 10.34571866 | C215: =C196 -> 8.0825927
A216: gLL | B216: ='LRFR Input'!D72 -> 1.75 | C216: ='LRFR Input'!D72 -> 1.75
A217: RFi-w | B217: =(B212-B213*B214)/(B215*B216) -> 0.9450685197 | C217: =(C212-C213*C214)/(C215*C216) -> 1.209687705
A218: RFi-c | B218: =E60^2/E59^2 -> 1.220185978 | C218: =E60^2/E59^2 -> 1.220185978
A219: RFi | B219: =MIN(B217,$B$218) -> 0.9450685197 | C219: =MIN(C217,$B$218) -> 1.209687705
A222: Load Rating Summary:
B223: Load | C223: GVW | D223: Rating Factor | E223: Safe Load
A224: Inventory | B224: =B211 -> HL-93 Truck | C224: 36 | D224: =B219 -> 0.9450685197 | E224: =C224*D224 -> 34.02246671
B225: =C211 -> HL-93 Tandem | C225: 25 | D225: =C219 -> 1.209687705 | E225: 30.24219263
A226: Operating | B226: =B192 -> HL-93 Truck | C226: 36 | D226: =B200 -> 1.225088822 | E226: 44.10319758
B227: =C192 -> HL-93 Tandem | C227: 25 | D227: =C200 -> 1.429018472 | E227: 35.72546181
B228: =D192 -> LA Type 3-S2 | C228: 36.5 | D228: =D200 -> 1.429018472 | E228: =C228*D228 -> 52.15917425
B229: =E192 -> LA Type 3 | C229: 20.5 | D229: =E200 -> 1.429018472 | E229: 29.29487869
B230: =F192 -> Type 3-3 | C230: 40 | D230: =F200 -> 1.429018472 | E230: 57.1607389

Sheet Output HL93, LA6, LA8
A2: Structure No: | B2: ='LRFR Input'!C2 -> 0 | C2: Bridge Name: | D2: ='LRFR Input'!E2 -> LADOTD
A3: Route/Crossing: | B3: ='LRFR Input'!C3 ->  | C3: ADTT: | D3: ='LRFR Input'!E3 -> 630
A4: Year Built: | B4: ='LRFR Input'!C4 -> 1993 | C4: Load Rated By: | D4: ='LRFR Input'!E4 -> D.N | E4: Date: | F4: ='LRFR Input'!G4 -> 2013-01-14
A5: Structure Type: | B5: ='LRFR Input'!C5 -> Corrugated Metal Pipe Arch | C5: Checked By: | D5: ='LRFR Input'!E5 -> M.H. | E5: Date: | F5: ='LRFR Input'!G5 -> 2013-01-14
A7: LRFR of In-Service, Corrugated Metal Pipe Structures
A8: Based on AASHTO LRFD Bridge Design Specifications, Section 3, 4 & 12 & NCSPA Design Data Sheet No. 19 & ODOT Bridge Design Manual 2004 (effective 10-15-2010), Section 900 & 2008 AASHTO MBE
A9: (do not use this spreadsheet to load rate Structural Plate Box Culverts)
A11: A. Design Dimensions
A12: 1. For typical structures, use the actual field measured span for calculations.
A13: 2. For unsymmetrical structures or those deflected over 5%:
A14: a. use 2 x the top radius (2 Rt) in lieu of span for calculations.
A15: b. base critical buckling stress calculations on the theoretical design span, reducing the resulting allowable buckling stress by the appropriate multiplier to account for deflection " f " (NCSPA Design Data Sheet No. 19, Figure B.1.1).
A17: 3. For all long span structures (horizontal ellipse, low and high profile arches, inverted pear shapes and pear arches), as well as other horizontal ellipses, use 2 x actual top radius (2Rt) in all cases.
B20: For typical structures : | C20: Design Span = Actual Span "S" (ft) = | E20: ='LRFR Input'!D42 -> 11.42
B22: For unsymmetrical or deflect more than 5% structures: | C22: Design Span (ft) = 2Rt = | E22: =2*'LRFR Input'!D45 -> 18.83
C23: Pipe Crown Deflection = | E23: ='LRFR Input'!D52 -> 0.05
C24: Buckling Strength Reduction Factor, f * = | E24: ='Output HL93, LA3S2, LA3, 3-3'!E24 -> 0.67
B25: * reduction factor f is based on NCSPA Design Data Sheet No 19, II Structural Evaluation A.2.b & Appendix B.1, Figure B.1.1 for Unsymmetrical structures or structures deflected over 5% only.
B28: long span structures: | C28: Design Span (ft) = 2Rt = | E28: =2*'LRFR Input'!D45 -> 18.83
A30: Structure Category: | C30: ='LRFR Input'!D40 -> Unsymmetrical or deflect over 5% (NCSPA design data sheet No. 19, II. A. 2.)
A32: Then, Span Length used in Load Rating Calculation = | D32: =IF(C30 ="Typical (NCSPA design data sheet no. 19, II. A. 1.)", E20, E22) -> 18.83 | E32: ft
A33: Then, Rt used in Load Rating Calculation = | D33: ='LRFR Input'!D45:E45 -> 9.415 | E33: ft
A34: B. Design Properties
A36: Conduits Mechanical & Section Properties:
A37: Mechanical Properties:
B38: Metal Type: | C38: ='LRFR Input'!E46 -> Steel
B39: Fy = Minimum Yield Point of the Metal | E39: =VLOOKUP(C38,'Reference tables'!C32:F36,3,FALSE) -> 33 | F39: ksi
B40: Fu = Minimum Tensile Strength of the Metal | E40: =VLOOKUP(C38,'Reference tables'!C32:F36,2,FALSE) -> 45 | F40: ksi
B41: Em = Modulus of elasticity of metal | E41: =VLOOKUP(C38,'Reference tables'!C32:F36,4,FALSE) -> 29000 | F41: ksi
A43: Section Properties:
A44: Corrugation: | B44: ='LRFR Input'!E47 -> 3 x 1 (corrugated steel pipe)
A45: Gage Number: | B45: ='LRFR Input'!E48 -> 10
A46: c (in) = | B46: =IF(B44="N/A",'LRFR Input'!E49, "") -> 
A47: d (in) = | B47: =IF(B44="N/A",'LRFR Input'!E50, "") -> 
A48: t (in) = | B48: =IF(B45="N/A", 'LRFR Input'!E51, VLOOKUP(B45,'Reference tables'!B39:C48,2,FALSE)) -> 0.138
A50: As (in2/ft) = | B50: ='LRFR Input'!D57 -> 2.008
A51: r (in) = | B51: ='LRFR Input'!D58 -> 0.3472
A52: I x 10-3 (in4/in) = | B52: ='LRFR Input'!D59 -> 20.183
A55: C. Design Calculations:
B56: Structure Type: | C56: ='LRFR Input'!D38 -> Corrugated Metal Pipe
B57: Seam Type: | C57: ='LRFR Input'!D39 -> Helical pipe w/ lock seam or fully welded seam
B58: Longitudinal Length of Structure "L" (ft) = | E58: ='LRFR Input'!D44 -> 70.5
B59: AASHTO minimum cover, h (ft) = | E59: =E28/8 -> 2.35375 | F59: =IF(AND(C56="Long Span Structural Plate (AASHTO 12.7)",B48<'Reference tables'!C17), "see * below", "") -> 
B60: Height of cover above crown "H" (ft) = | E60: ='LRFR Input'!D41 -> 2.6 | F60: =IF(E60>=E59, "", "! H<h, cover not deep enough!") -> 
B61: φloss = Section Properties reduction factor on the basis of metal loss from the materials field evaluation = | E61: =1-'LRFR Input'!D53 -> 1
B62: φ1 = Resistance Factor for wall area and buckling (Table 12.5.5-1) | E62: =IF('LRFR Input'!D38="Long Span Structural Plate",0.67,1) -> 1
B63: φ2 = Resistance Factor for seam strength (Table 12.5.5-1) | E63: =IF('LRFR Input'!D39="Annular pipe w/ spot welded, riveted or bolted seam", 0.67, IF('LRFR Input'!D39="Helical pipe w/ lock seam or fully welded seam", 1, "")) -> 1
B64: δ = Soil density (k/ft3) | E64: ='LRFR Input'!D65 -> 0.12
B65: k = soil stiffness factor = | E65: 0.22
B66: φE = Factor for Distribution of Live Load with Depth of Fill based on Backfill Type (per AASHTO LRFD 3.6.1.2.6)= | E66: ='LRFR Input'!D66 -> 1.15
A69: Calculate the fcr (critical buckling stress) : | C69: (AASHTO LRFD 12.7.2.4)
A71: if:
A73: if:
A75: Compare: | B75: S (in) = | C75: =D32*12 -> 225.96 | D75: =IF(C75>F75, ">", "<") -> > | F75: =(B51/E65)*(24*E41*1000/(E40*1000))^0.5 -> 196.2706671
A77: Therefore, | B77: fcr = | C77: =IF(C75<F75, (E40*1000-((E40*1000)^2/(48*E41*1000))*(E65*C75/B51)^2)/1000, (12*E41*1000/(E65*C75/B51)^2)/1000) -> 16.97579739 | D77: ksi
A79: Calculate the Tcap (thrust capacity of the wall) :
B80: Seam Strength (k/ft) = | C80: ='LRFR Input'!D61 -> 0
B82: Tcap = less of: | C82: 1. wall yield strength = φ1 φloss Fy A = | F82: =E39*B50*E62*E61 -> 66.264
C83: 2. wall buckling strength = f φ1 φloss fcr A = | F83: =IF('LRFR Input'!D38="Long Span Structural Plate", "N/A", IF(C30="Unsymmetrical or deflect over 5% (NCSPA design data sheet No. 19, II. A. 2.)", C77*B50*E62*E61*E24, C77*B50*E62*E61)) -> 22.83855878 | I83: =IF('LRFR Input'!D38="Long Span Structural Plate", "buckling not applicable to long spans", "") -> 
C84: 3. seam strength = φ2 x (seam strength) = | F84: =E63*C80 -> 0
A86: Therefore, | B86: Tcap = | C86: =IF('LRFR Input'!D39="Annular pipe w/ spot welded, riveted or bolted seam", MIN(F82,F83,F84), MIN(F82,F83)) -> 22.83855878 | D86: k/ft
A88: Calculate the TE (pipe wall thrust due to earth cover) :
B89: TE = higher value of : | C89: 1. δ H (S/2) = | D89: =E64*E60*D32/2 -> 2.93748 | E89: k/ft
C90: 2. δ H Rt = | D90: =E64*E60*D33 -> 2.93748 | E90: k/ft
A92: Therefore, | B92: TE = | C92: =MAX(D89,D90) -> 2.93748 | D92: k/ft
A94: Calculate the T(L+I) (pipe wall thrust due to live load plus impact) :
B95: T(L+IM) = higher value of : | C95: 1. ρ (L+IM) (S/2) = | D95: k/ft
C96: 2. ρ (L+IM) Rt = | D96: k/ft
B98: Based on AASHTO LRFD 3.6.2.2:
B99: Live load Dynamic Load Allowance, IM = | D99: 33(1.0-0.125 DE) ≥ 0%
B100: where, | C100: DE = the minimum depth of earth cover above the structure (ft)
C102: For this structure: Depth of Fill, DE = H= | D102: =E60 -> 2.6 | E102: ft
C103: IM = | D103: =IF(33*(1-0.125*D102)/100>0,33*(1-0.125*D102)/100,0) -> 0.22275
C104: (1+IM) = | D104: =1+D103 -> 1.22275
A106: Case A: | B106: Depth of Fill, H < 2 ft
B107: Calculations will be based on AASHTO LRFD 4.6.2.10.1 & 2 (case 1: traffic travels parallel to span):
B108: When Depths of Fill of Culverts < 2.0 ft,
B109: Eaxle= 96+1.44 S = | D109: =(96+1.44*D32) -> 123.1152 | E109: in
B110: Therefore, Ewheel = ½ Eaxle = | D110: =D109/24 -> 5.1298 | E110: ft
C111: Espan = LT + φE (H) = | D111: same as case B, see calculations below
B112: Where,
C113: Ewheel = equivalent distribution width perpendicular to span, = WD
C114: WD = Distributed load width/ per wheel load
C115: Espan = equivalent distribution length parallel to span, = LD
C116: LD = Distributed load length/ per wheel load
A117: Case B: | B117: Depth of Fill, H ≥ 2 ft
B118: Calculations will be based on AASHTO LRFD 3.6.1.2.5 & 6:
A130: Where, WT = Tire contact width, LT = Tire contact length, WD = Distributed load width, LD = Distributed load length
A132: The surface tire contact area for HL-93 loading (per AASHTO LRFD 3.6.1.2.5):
A133: WT = 20" = | B133: =20/12 -> 1.666666667 | C133: ft
A134: LT = 10" = | B134: =10/12 -> 0.8333333333 | C134: ft
A135: The surface tire contact area for LA6, LA8 (per AASHTO LRFD C3.6.1.2.5 Guideline):
A136: WT (in) = | B136: P/0.8
A137: LT (in) = | B137: 6.4g(1+IM/100)
A138: where, | B138: p = wheel load (kips)
B139: g = Load Factor for Legal Loads gLL = | D139: ='LRFR Input'!D74 -> 1.8
B140: IM = dynamic load allowance percent
A141: So, | C141: HL-93 Tandem | D141: LA Type 6 | E141: LA Type 8
B142: P "heavy axle" wheel load (kips) = | C142: 12.5 | D142: 9.25 | E142: 9.25
B143: WT (ft) = | C143: =B133 -> 1.666666667 | D143: =(D142/0.8)/12 -> 0.9635416667 | E143: =(E142/0.8)/12 -> 0.9635416667
B144: LT (ft) = | C144: =B134 -> 0.8333333333 | D144: =6.4*$D$104/12*$D$139 -> 1.17384 | E144: =6.4*$D$104/12*$D$139 -> 1.17384
A146: Distribution of wheel loads through earth fills (per AASHTO LRFD 3.6.1.2.6):
A148: for HL-93 Design Truck:
B149: WD = 1.67+φEH= | C149: =20/12+E66*D102 -> 4.656666667 | D149: ft
B150: LD = 0.83 + φEH = | C150: =10/12+E66*D102 -> 3.823333333 | D150: ft
A151: for HL-93 Tandem, LA6, LA8 Trucks:
C152: HL-93 Tandem | D152: LA Type 6 | E152: LA Type 8
B153: WD = WT + φEH = | C153: =C143+$E$66*$E$60 -> 4.656666667 | D153: 3.953541667 | E153: 3.953541667
B154: LD = LT + φEH = | C154: 3.823333333 | D154: 4.16384 | E154: 4.16384
C156: Fill depth, H = | D156: =D102 -> 2.6 | E156: =IF(D156<2, "H<2', Case A applied", IF(D156>=2, "H>=2', Case B applied", "")) -> H>=2', Case B applied
C157: Structure Total Length, L = | D157: ='LRFR Input'!D44 -> 70.5 | E157: ft
C158: [ if WD (total) > L, use L = WD (total) in the calculations ]
B159: HL-93 Truck | C159: HL-93 Tandem | D159: LA Type 6 | E159: LA Type 8
A160: Heavy Axle Load (lbs) | B160: 32000 | C160: 25000 | D160: 18500 | E160: 18500
A161: P (1+ IM) (lbs) = | B161: =B160/2*$D$104 -> 19564 | C161: =C160/2*$D$104 -> 15284.375 | D161: =D160/2*$D$104 -> 11310.4375 | E161: =E160/2*$D$104 -> 11310.4375
A162: * Saxle 1 (ft) = | B162: 0 | C162: 4 | D162: 4 | E162: 4
A163: * Saxle 2 (ft) = | B163: 0 | C163: 0 | D163: 0 | E163: 0
A164: wheel spacing on axle | B164: 6 | C164: 6 | D164: 6 | E164: 6
A165: WD (ft) = | B165: =IF($D$156<2, $D$110, C149) -> 4.656666667 | C165: =IF($D$156<2, $D$110, C153) -> 4.656666667 | D165: =IF($D$156<2, $D$110, D153) -> 3.953541667 | E165: =IF($D$156<2, $D$110, E153) -> 3.953541667
A166: LD (ft) = | B166: =C150 -> 3.823333333 | C166: =C154 -> 3.823333333 | D166: =D154 -> 4.16384 | E166: =E154 -> 4.16384
A167: WD (total) = | B167: =IF(B165>B164, MIN(B165+B164,$D$157), MIN(B165,$D$157) ) -> 4.656666667 | C167: =IF(C165>C164, MIN(C165+C164, $D$157), MIN(C165,$D$157)) -> 4.656666667 | D167: =IF(D165>D164, MIN(D165+D164, $D$157), MIN(D165,$D$157)) -> 3.953541667 | E167: =IF(E165>E164, MIN(E165+E164, D157), MIN(E165,D157)) -> 3.953541667
A168: LD (total) = | B168: =IF(B166>B162, B166+B162, B166) -> 3.823333333 | C168: =IF(C166>C162, C166+C162, C166) -> 3.823333333 | D168: =IF(D166>D162, D166+D162, D166) -> 8.16384 | E168: =IF(E166>E162, E166+E162, E166) -> 8.16384
A169: * AD (ft2) = | B169: =B167*B168 -> 17.80398889 | C169: =C167*C168 -> 17.80398889 | D169: =D167*D168 -> 32.2760816 | E169: =E167*E168 -> 32.2760816
A170: * PD (kips) = | B170: =IF(AND(B167>B165,B168>B166),4*B161/1000,IF(OR(B167>B165,B168>B166),2*B161/1000,B161/1000)) -> 19.564 | C170: =IF(AND(C167>C165,C168>C166),4*C161/1000,IF(OR(C167>C165,C168>C166),2*C161/1000,C161/1000)) -> 15.284375 | D170: =IF(AND(D167>D165,D168>D166),4*D161/1000,IF(OR(D167>D165,D168>D166),2*D161/1000,D161/1000)) -> 22.620875 | E170: =IF(AND(E167>E165,E168>E166),4*E161/1000,IF(OR(E167>E165,E168>E166),2*E161/1000,E161/1000)) -> 22.620875
A171: ρ (L+IM) = PD/AD = | B171: =B170/B169 -> 1.098854876 | C171: =C170/C169 -> 0.8584803718 | D171: =D170/D169 -> 0.7008556764 | E171: =E170/E169 -> 0.7008556764
A172: T(L+IM) (k/ft) = | B172: =MAX(B171*$D$32/2, B171*$D$33) -> 10.34571866 | C172: =MAX(C171*$D$32/2, C171*$D$33) -> 8.0825927 | D172: =MAX(D171*$D$32/2, D171*$D$33) -> 6.598556193 | E172: =MAX(E171*$D$32/2, E171*$D$33) -> 6.598556193
A173: * Saxle 1 = distance to the 1st adjacent heavy axle load, if the spacing is > 4', Saxle1 = 0.
A174: Saxle 2 = distance to the 2nd adjacent heavy axle load, if the spacing is > 4', Saxle2 = 0.
A175: AD = Total Load Distributed Area
A176: PD = Total Load being Distributed
A177: Transverse pressure overlaps are considered. Longitudinal pressure overlaps are considered for two adjacent heavy axle loads when the Saxle is ≤ 4 feet.
A180: D. Load Rating Factors for Ring Compression Structures:
A181: 1. Operating Load Rating Factor (RFO):
A182: a. RFO based on wall strength
A185: b. RFO based on minimum cover requirements
B188: Where, | D188: =IF((2.36*E60/D32+0.528)>1, 1, 2.36*E60/D32+0.528) -> 0.8538629846
B189: So, RFO-C = | C189: =E60^2/(D188*(E59)^2) -> 1.429018472
A191: Operating Load Rating Factors, RFO
B192: HL-93 Truck | C192: HL-93 Tandem | D192: LA Type 6 | E192: LA Type 8
A193: Tcap | B193: =$C$86 -> 22.83855878 | C193: =$C$86 -> 22.83855878 | D193: =$C$86 -> 22.83855878 | E193: =$C$86 -> 22.83855878
A194: TE | B194: =$C$92 -> 2.93748 | C194: =$C$92 -> 2.93748 | D194: =$C$92 -> 2.93748 | E194: =$C$92 -> 2.93748
A195: gEV | B195: ='LRFR Input'!D71 -> 1.95 | C195: ='LRFR Input'!D71 -> 1.95 | D195: ='LRFR Input'!D71 -> 1.95 | E195: ='LRFR Input'!D71 -> 1.95
A196: T(L+IM) | B196: =B172 -> 10.34571866 | C196: =C172 -> 8.0825927 | D196: 6.598556193 | E196: 6.598556193
A197: gLL | B197: ='LRFR Input'!D73 -> 1.35 | C197: ='LRFR Input'!D73 -> 1.35 | D197: ='LRFR Input'!D74 -> 1.8 | E197: ='LRFR Input'!D74 -> 1.8
A198: RFO-W | B198: =(B193-B195*B194)/(B196*B197) -> 1.225088822 | C198: =(C193-C195*C194)/(C196*C197) -> 1.568113692 | D198: 1.440590628 | E198: 1.440590628
A199: RFO-C | B199: =$C$189 -> 1.429018472 | C199: =$C$189 -> 1.429018472 | D199: =$C$189 -> 1.429018472 | E199: =$C$189 -> 1.429018472
A200: RFO | B200: =MIN(B198,$B$199) -> 1.225088822 | C200: =MIN(C198,$B$199) -> 1.429018472 | D200: 1.429018472 | E200: 1.429018472
A203: 2. Inventory Load Rating Factor (RFi):
A204: a. RFi based on wall strength
A207: b. RFi based on minimum cover requirements
A210: Inventory Load Rating Factor, RFi
B211: HL-93 Truck | C211: HL-93 Tandem
A212: Tcap | B212: =B193 -> 22.83855878 | C212: =C193 -> 22.83855878
A213: TE | B213: =B194 -> 2.93748 | C213: =C194 -> 2.93748
A214: gEV | B214: ='LRFR Input'!D71 -> 1.95 | C214: ='LRFR Input'!D71 -> 1.95
A215: T(L+IM) | B215: =B196 -> 10.34571866 | C215: =C196 -> 8.0825927
A216: gLL | B216: ='LRFR Input'!D72 -> 1.75 | C216: ='LRFR Input'!D72 -> 1.75
A217: RFi-w | B217: =(B212-B213*B214)/(B215*B216) -> 0.9450685197 | C217: =(C212-C213*C214)/(C215*C216) -> 1.209687705
A218: RFi-c | B218: =E60^2/E59^2 -> 1.220185978 | C218: =E60^2/E59^2 -> 1.220185978
A219: RFi | B219: =MIN(B217,$B$218) -> 0.9450685197 | C219: =MIN(C217,$B$218) -> 1.209687705
A222: Load Rating Summary:
B223: Load | C223: GVW | D223: Rating Factor | E223: Safe Load
A224: Inventory | B224: =B211 -> HL-93 Truck | C224: 36 | D224: =B219 -> 0.9450685197 | E224: =C224*D224 -> 34.02246671
B225: =C211 -> HL-93 Tandem | C225: 25 | D225: =C219 -> 1.209687705 | E225: 30.24219263
A226: Operating | B226: =B192 -> HL-93 Truck | C226: 36 | D226: =B200 -> 1.225088822 | E226: 44.10319758
B227: =C192 -> HL-93 Tandem | C227: 25 | D227: =C200 -> 1.429018472 | E227: 35.72546181
B228: =D192 -> LA Type 6 | C228: 40 | D228: =D200 -> 1.429018472 | E228: =C228*D228 -> 57.1607389
B229: =E192 -> LA Type 8 | C229: 44 | D229: =E200 -> 1.429018472 | E229: 62.87681279

Sheet Output HL93, NRL, SU4, SU5
A2: Structure No: | B2: ='LRFR Input'!C2 -> 0 | C2: Bridge Name: | D2: ='LRFR Input'!E2 -> LADOTD
A3: Route/Crossing: | B3: ='LRFR Input'!C3 ->  | C3: ADTT: | D3: ='LRFR Input'!E3 -> 630
A4: Year Built: | B4: ='LRFR Input'!C4 -> 1993 | C4: Load Rated By: | D4: ='LRFR Input'!E4 -> D.N | E4: Date: | F4: ='LRFR Input'!G4 -> 2013-01-14
A5: Structure Type: | B5: ='LRFR Input'!C5 -> Corrugated Metal Pipe Arch | C5: Checked By: | D5: ='LRFR Input'!E5 -> M.H. | E5: Date: | F5: ='LRFR Input'!G5 -> 2013-01-14
A7: LRFR of In-Service, Corrugated Metal Pipe Structures
A8: Based on AASHTO LRFD Bridge Design Specifications, Section 3, 4 & 12 & NCSPA Design Data Sheet No. 19 & ODOT Bridge Design Manual 2004 (effective 10-15-2010), Section 900 & 2008 AASHTO MBE
A9: (do not use this spreadsheet to load rate Structural Plate Box Culverts)
A11: A. Design Dimensions
A12: 1. For typical structures, use the actual field measured span for calculations.
A13: 2. For unsymmetrical structures or those deflected over 5%:
A14: a. use 2 x the top radius (2 Rt) in lieu of span for calculations.
A15: b. base critical buckling stress calculations on the theoretical design span, reducing the resulting allowable buckling stress by the appropriate multiplier to account for deflection " f " (NCSPA Design Data Sheet No. 19, Figure B.1.1).
A17: 3. For all long span structures (horizontal ellipse, low and high profile arches, inverted pear shapes and pear arches), as well as other horizontal ellipses, use 2 x actual top radius (2Rt) in all cases.
B20: For typical structures : | C20: Design Span = Actual Span "S" (ft) = | E20: ='LRFR Input'!D42 -> 11.42
B22: For unsymmetrical or deflect more than 5% structures: | C22: Design Span (ft) = 2Rt = | E22: =2*'LRFR Input'!D45 -> 18.83
C23: Pipe Crown Deflection = | E23: ='LRFR Input'!D52 -> 0.05
C24: Buckling Strength Reduction Factor, f * = | E24: ='Output HL93, LA3S2, LA3, 3-3'!E24 -> 0.67
B25: * reduction factor f is based on NCSPA Design Data Sheet No 19, II Structural Evaluation A.2.b & Appendix B.1, Figure B.1.1 for Unsymmetrical structures or structures deflected over 5% only.
B28: long span structures: | C28: Design Span (ft) = 2Rt = | E28: =2*'LRFR Input'!D45 -> 18.83
A30: Structure Category: | C30: ='LRFR Input'!D40 -> Unsymmetrical or deflect over 5% (NCSPA design data sheet No. 19, II. A. 2.)
A32: Then, Span Length used in Load Rating Calculation = | D32: =IF(C30 ="Typical (NCSPA design data sheet no. 19, II. A. 1.)", E20, E22) -> 18.83 | E32: ft
A33: Then, Rt used in Load Rating Calculation = | D33: ='LRFR Input'!D45:E45 -> 9.415 | E33: ft
A34: B. Design Properties
A36: Conduits Mechanical & Section Properties:
A37: Mechanical Properties:
B38: Metal Type: | C38: ='LRFR Input'!E46 -> Steel
B39: Fy = Minimum Yield Point of the Metal | E39: =VLOOKUP(C38,'Reference tables'!C32:F36,3,FALSE) -> 33 | F39: ksi
B40: Fu = Minimum Tensile Strength of the Metal | E40: =VLOOKUP(C38,'Reference tables'!C32:F36,2,FALSE) -> 45 | F40: ksi
B41: Em = Modulus of elasticity of metal | E41: =VLOOKUP(C38,'Reference tables'!C32:F36,4,FALSE) -> 29000 | F41: ksi
A43: Section Properties:
A44: Corrugation: | B44: ='LRFR Input'!E47 -> 3 x 1 (corrugated steel pipe)
A45: Gage Number: | B45: ='LRFR Input'!E48 -> 10
A46: c (in) = | B46: =IF(B44="N/A",'LRFR Input'!E49, "") -> 
A47: d (in) = | B47: =IF(B44="N/A",'LRFR Input'!E50, "") -> 
A48: t (in) = | B48: =IF(B45="N/A", 'LRFR Input'!E51, VLOOKUP(B45,'Reference tables'!B39:C48,2,FALSE)) -> 0.138
A50: As (in2/ft) = | B50: ='LRFR Input'!D57 -> 2.008
A51: r (in) = | B51: ='LRFR Input'!D58 -> 0.3472
A52: I x 10-3 (in4/in) = | B52: ='LRFR Input'!D59 -> 20.183
A55: C. Design Calculations:
B56: Structure Type: | C56: ='LRFR Input'!D38 -> Corrugated Metal Pipe
B57: Seam Type: | C57: ='LRFR Input'!D39 -> Helical pipe w/ lock seam or fully welded seam
B58: Longitudinal Length of Structure "L" (ft) = | E58: ='LRFR Input'!D44 -> 70.5
B59: AASHTO minimum cover, h (ft) = | E59: =E28/8 -> 2.35375 | F59: =IF(AND(C56="Long Span Structural Plate (AASHTO 12.7)",B48<'Reference tables'!C17), "see * below", "") -> 
B60: Height of cover above crown "H" (ft) = | E60: ='LRFR Input'!D41 -> 2.6 | F60: =IF(E60>=E59, "", "! H<h, cover not deep enough!") -> 
B61: φloss = Section Properties reduction factor on the basis of metal loss from the materials field evaluation = | E61: =1-'LRFR Input'!D53 -> 1
B62: φ1 = Resistance Factor for wall area and buckling (Table 12.5.5-1) | E62: =IF('LRFR Input'!D38="Long Span Structural Plate",0.67,1) -> 1
B63: φ2 = Resistance Factor for seam strength (Table 12.5.5-1) | E63: =IF('LRFR Input'!D39="Annular pipe w/ spot welded, riveted or bolted seam", 0.67, IF('LRFR Input'!D39="Helical pipe w/ lock seam or fully welded seam", 1, "")) -> 1
B64: δ = Soil density (k/ft3) | E64: ='LRFR Input'!D65 -> 0.12
B65: k = soil stiffness factor = | E65: 0.22
B66: φE = Factor for Distribution of Live Load with Depth of Fill based on Backfill Type (per AASHTO LRFD 3.6.1.2.6)= | E66: ='LRFR Input'!D66 -> 1.15
A69: Calculate the fcr (critical buckling stress) : | C69: (AASHTO LRFD 12.7.2.4)
A71: if:
A73: if:
A75: Compare: | B75: S (in) = | C75: =D32*12 -> 225.96 | D75: =IF(C75>F75, ">", "<") -> > | F75: =(B51/E65)*(24*E41*1000/(E40*1000))^0.5 -> 196.2706671
A77: Therefore, | B77: fcr = | C77: =IF(C75<F75, (E40*1000-((E40*1000)^2/(48*E41*1000))*(E65*C75/B51)^2)/1000, (12*E41*1000/(E65*C75/B51)^2)/1000) -> 16.97579739 | D77: ksi
A79: Calculate the Tcap (thrust capacity of the wall) :
B80: Seam Strength (k/ft) = | C80: ='LRFR Input'!D61 -> 0
B82: Tcap = less of: | C82: 1. wall yield strength = φ1 φloss Fy A = | F82: =E39*B50*E62*E61 -> 66.264
C83: 2. wall buckling strength = f φ1 φloss fcr A = | F83: =IF('LRFR Input'!D38="Long Span Structural Plate", "N/A", IF(C30="Unsymmetrical or deflect over 5% (NCSPA design data sheet No. 19, II. A. 2.)", C77*B50*E62*E61*E24, C77*B50*E62*E61)) -> 22.83855878 | I83: =IF('LRFR Input'!D38="Long Span Structural Plate", "buckling not applicable to long spans", "") -> 
C84: 3. seam strength = φ2 x (seam strength) = | F84: =E63*C80 -> 0
A86: Therefore, | B86: Tcap = | C86: =IF('LRFR Input'!D39="Annular pipe w/ spot welded, riveted or bolted seam", MIN(F82,F83,F84), MIN(F82,F83)) -> 22.83855878 | D86: k/ft
A88: Calculate the TE (pipe wall thrust due to earth cover) :
B89: TE = higher value of : | C89: 1. δ H (S/2) = | D89: =E64*E60*D32/2 -> 2.93748 | E89: k/ft
C90: 2. δ H Rt = | D90: =E64*E60*D33 -> 2.93748 | E90: k/ft
A92: Therefore, | B92: TE = | C92: =MAX(D89,D90) -> 2.93748 | D92: k/ft
A94: Calculate the T(L+I) (pipe wall thrust due to live load plus impact) :
B95: T(L+IM) = higher value of : | C95: 1. ρ (L+IM) (S/2) = | D95: k/ft
C96: 2. ρ (L+IM) Rt = | D96: k/ft
B98: Based on AASHTO LRFD 3.6.2.2:
B99: Live load Dynamic Load Allowance, IM = | D99: 33(1.0-0.125 DE) ≥ 0%
B100: where, | C100: DE = the minimum depth of earth cover above the structure (ft)
C102: For this structure: Depth of Fill, DE = H= | D102: =E60 -> 2.6 | E102: ft
C103: IM = | D103: =IF(33*(1-0.125*D102)/100>0,33*(1-0.125*D102)/100,0) -> 0.22275
C104: (1+IM) = | D104: =1+D103 -> 1.22275
A106: Case A: | B106: Depth of Fill, H < 2 ft
B107: Calculations will be based on AASHTO LRFD 4.6.2.10.1 & 2 (case 1: traffic travels parallel to span):
B108: When Depths of Fill of Culverts < 2.0 ft,
B109: Eaxle= 96+1.44 S = | D109: =(96+1.44*D32) -> 123.1152 | E109: in
B110: Therefore, Ewheel = ½ Eaxle = | D110: =D109/24 -> 5.1298 | E110: ft
C111: Espan = LT + φE (H) = | D111: same as case B, see calculations below
B112: Where,
C113: Ewheel = equivalent distribution width perpendicular to span, = WD
C114: WD = Distributed load width/ per wheel load
C115: Espan = equivalent distribution length parallel to span, = LD
C116: LD = Distributed load length/ per wheel load
A117: Case B: | B117: Depth of Fill, H ≥ 2 ft
B118: Calculations will be based on AASHTO LRFD 3.6.1.2.5 & 6:
A130: Where, WT = Tire contact width, LT = Tire contact length, WD = Distributed load width, LD = Distributed load length
A132: The surface tire contact area for HL-93 loading (per AASHTO LRFD 3.6.1.2.5):
A133: WT = 20" = | B133: =20/12 -> 1.666666667 | C133: ft
A134: LT = 10" = | B134: =10/12 -> 0.8333333333 | C134: ft
A135: The surface tire contact area for NRL, SU4, SU5 (per AASHTO LRFD C3.6.1.2.5 Guideline):
A136: WT (in) = | B136: P/0.8
A137: LT (in) = | B137: 6.4g(1+IM/100)
A138: where, | B138: p = wheel load (kips)
B139: g = Load Factor for Special Hauling Loads gLL = | D139: ='LRFR Input'!D75 -> 1.6
B140: IM = dynamic load allowance percent
A141: So, | C141: HL-93 Tandem | D141: NRL | E141: SU4 | F141: SU5
B142: P "heavy axle" wheel load (kips) = | C142: 12.5 | D142: 8.5 | E142: 8.5 | F142: 8.5
B143: WT (ft) = | C143: =B133 -> 1.666666667 | D143: =(D142/0.8)/12 -> 0.8854166667 | E143: =(E142/0.8)/12 -> 0.8854166667 | F143: 0.8854166667
B144: LT (ft) = | C144: =B134 -> 0.8333333333 | D144: =6.4*$D$104/12*$D$139 -> 1.043413333 | E144: =6.4*$D$104/12*$D$139 -> 1.043413333 | F144: =6.4*$D$104/12*$D$139 -> 1.043413333
A146: Distribution of wheel loads through earth fills (per AASHTO LRFD 3.6.1.2.6):
A148: for HL-93 Design Truck:
B149: WD = 1.67+φEH= | C149: =20/12+E66*D102 -> 4.656666667 | D149: ft
B150: LD = 0.83 + φEH = | C150: =10/12+E66*D102 -> 3.823333333 | D150: ft
A151: for HL-93 Tandem, NRL, SU4, SU5 Trucks:
C152: HL-93 Tandem | D152: NRL | E152: SU4 | F152: SU5
B153: WD = WT + φEH = | C153: =C143+$E$66*$E$60 -> 4.656666667 | D153: 3.875416667 | E153: 3.875416667 | F153: 3.875416667
B154: LD = LT + φEH = | C154: 3.823333333 | D154: 4.033413333 | E154: 4.033413333 | F154: 4.033413333
C156: Fill depth, H = | D156: =D102 -> 2.6 | E156: =IF(D156<2, "H<2', Case A applied", IF(D156>=2, "H>=2', Case B applied", "")) -> H>=2', Case B applied
C157: Structure Total Length, L = | D157: ='LRFR Input'!D44 -> 70.5 | E157: ft
C158: [ if WD (total) > L, use L = WD (total) in the calculations ]
B159: HL-93 Truck | C159: HL-93 Tandem | D159: NRL | E159: SU4 | F159: SU5
A160: Heavy Axle Load (lbs) | B160: 32000 | C160: 25000 | D160: 17000 | E160: 17000 | F160: 17000
A161: P (1+ IM) (lbs) = | B161: =B160/2*$D$104 -> 19564 | C161: =C160/2*$D$104 -> 15284.375 | D161: =D160/2*$D$104 -> 10393.375 | E161: =E160/2*$D$104 -> 10393.375 | F161: =F160/2*$D$104 -> 10393.375
A162: * Saxle 1 (ft) = | B162: 0 | C162: 4 | D162: 4 | E162: 4 | F162: 4
A163: * Saxle 2 (ft) = | B163: 0 | C163: 0 | D163: 0 | E163: 0 | F163: 0
A164: wheel spacing on axle | B164: 6 | C164: 6 | D164: 6 | E164: 6 | F164: 6
A165: WD (ft) = | B165: =IF($D$156<2, $D$110, C149) -> 4.656666667 | C165: =IF($D$156<2, $D$110, C153) -> 4.656666667 | D165: =IF($D$156<2, $D$110, D153) -> 3.875416667 | E165: =IF($D$156<2, $D$110, E153) -> 3.875416667 | F165: =IF($D$156<2, $D$110, F153) -> 3.875416667
A166: LD (ft) = | B166: =C150 -> 3.823333333 | C166: =C154 -> 3.823333333 | D166: =D154 -> 4.033413333 | E166: =E154 -> 4.033413333 | F166: =F154 -> 4.033413333
A167: WD (total) = | B167: =IF(B165>B164, MIN(B165+B164,$D$157), MIN(B165,$D$157) ) -> 4.656666667 | C167: =IF(C165>C164, MIN(C165+C164, $D$157), MIN(C165,$D$157)) -> 4.656666667 | D167: =IF(D165>D164, MIN(D165+D164, $D$157), MIN(D165,$D$157)) -> 3.875416667 | E167: =IF(E165>E164, MIN(E165+E164, D157), MIN(E165,D157)) -> 3.875416667 | F167: =IF(F165>F164, MIN(F165+F164, D157), MIN(F165,D157)) -> 3.875416667
A168: LD (total) = | B168: =IF(B166>B162, B166+B162, B166) -> 3.823333333 | C168: =IF(C166>C162, C166+C162, C166) -> 3.823333333 | D168: =IF(D166>D162, D166+D162, D166) -> 8.033413333 | E168: =IF(E166>E162, E166+E162, E166) -> 8.033413333 | F168: =IF(F166>F162, F166+F162, F166) -> 8.033413333
A169: * AD (ft2) = | B169: =B167*B168 -> 17.80398889 | C169: =C167*C168 -> 17.80398889 | D169: =D167*D168 -> 31.13282392 | E169: =E167*E168 -> 31.13282392 | F169: =F167*F168 -> 31.13282392
A170: * PD (kips) = | B170: =IF(AND(B167>B165,B168>B166),4*B161/1000,IF(OR(B167>B165,B168>B166),2*B161/1000,B161/1000)) -> 19.564 | C170: =IF(AND(C167>C165,C168>C166),4*C161/1000,IF(OR(C167>C165,C168>C166),2*C161/1000,C161/1000)) -> 15.284375 | D170: =IF(AND(D167>D165,D168>D166),4*D161/1000,IF(OR(D167>D165,D168>D166),2*D161/1000,D161/1000)) -> 20.78675 | E170: =IF(AND(E167>E165,E168>E166),4*E161/1000,IF(OR(E167>E165,E168>E166),2*E161/1000,E161/1000)) -> 20.78675 | F170: =IF(AND(F167>F165,F168>F166),4*F161/1000,IF(OR(F167>F165,F168>F166),2*F161/1000,F161/1000)) -> 20.78675
A171: ρ (L+IM) = PD/AD = | B171: =B170/B169 -> 1.098854876 | C171: =C170/C169 -> 0.8584803718 | D171: =D170/D169 -> 0.6676795543 | E171: =E170/E169 -> 0.6676795543 | F171: =F170/F169 -> 0.6676795543
A172: T(L+IM) (k/ft) = | B172: =MAX(B171*$D$32/2, B171*$D$33) -> 10.34571866 | C172: =MAX(C171*$D$32/2, C171*$D$33) -> 8.0825927 | D172: =MAX(D171*$D$32/2, D171*$D$33) -> 6.286203004 | E172: =MAX(E171*$D$32/2, E171*$D$33) -> 6.286203004 | F172: =MAX(F171*$D$32/2, F171*$D$33) -> 6.286203004
A173: * Saxle 1 = distance to the 1st adjacent heavy axle load, if the spacing is > 4', Saxle1 = 0.
A174: Saxle 2 = distance to the 2nd adjacent heavy axle load, if the spacing is > 4', Saxle2 = 0.
A175: AD = Total Load Distributed Area
A176: PD = Total Load being Distributed
A177: Transverse pressure overlaps are considered. Longitudinal pressure overlaps are considered for two adjacent heavy axle loads when the Saxle is ≤ 4 feet.
A180: D. Load Rating Factors for Ring Compression Structures:
A181: 1. Operating Load Rating Factor (RFO):
A182: a. RFO based on wall strength
A185: b. RFO based on minimum cover requirements
B188: Where, | D188: =IF((2.36*E60/D32+0.528)>1, 1, 2.36*E60/D32+0.528) -> 0.8538629846
B189: So, RFO-C = | C189: =E60^2/(D188*(E59)^2) -> 1.429018472
A191: Operating Load Rating Factors, RFO
B192: HL-93 Truck | C192: HL-93 Tandem | D192: NRL | E192: SU4 | F192: SU5
A193: Tcap | B193: =$C$86 -> 22.83855878 | C193: =$C$86 -> 22.83855878 | D193: 22.83855878 | E193: 22.83855878 | F193: 22.83855878
A194: TE | B194: =$C$92 -> 2.93748 | C194: =$C$92 -> 2.93748 | D194: 2.93748 | E194: 2.93748 | F194: 2.93748
A195: gEV | B195: ='LRFR Input'!D71 -> 1.95 | C195: ='LRFR Input'!D71 -> 1.95 | D195: ='LRFR Input'!D71 -> 1.95 | E195: ='LRFR Input'!D71 -> 1.95 | F195: ='LRFR Input'!D71 -> 1.95
A196: T(L+IM) | B196: =B172 -> 10.34571866 | C196: =C172 -> 8.0825927 | D196: 6.286203004 | E196: 6.286203004 | F196: 6.286203004
A197: gLL | B197: ='LRFR Input'!D73 -> 1.35 | C197: ='LRFR Input'!D73 -> 1.35 | D197: ='LRFR Input'!D75 -> 1.6 | E197: ='LRFR Input'!D75 -> 1.6 | F197: ='LRFR Input'!D75 -> 1.6
A198: RFO-W | B198: =(B193-B195*B194)/(B196*B197) -> 1.225088822 | C198: =(C193-C195*C194)/(C196*C197) -> 1.568113692 | D198: 1.701193149 | E198: 1.701193149 | F198: =(F193-F195*F194)/(F196*F197) -> 1.701193149
A199: RFO-C | B199: =$C$189 -> 1.429018472 | C199: =$C$189 -> 1.429018472 | D199: 1.429018472 | E199: 1.429018472 | F199: 1.429018472
A200: RFO | B200: =MIN(B198,$B$199) -> 1.225088822 | C200: =MIN(C198,$B$199) -> 1.429018472 | D200: 1.429018472 | E200: 1.429018472 | F200: 1.429018472
A203: 2. Inventory Load Rating Factor (RFi):
A204: a. RFi based on wall strength
A207: b. RFi based on minimum cover requirements
A210: Inventory Load Rating Factor, RFi
B211: HL-93 Truck | C211: HL-93 Tandem
A212: Tcap | B212: =B193 -> 22.83855878 | C212: =C193 -> 22.83855878
A213: TE | B213: =B194 -> 2.93748 | C213: =C194 -> 2.93748
A214: gEV | B214: ='LRFR Input'!D71 -> 1.95 | C214: ='LRFR Input'!D71 -> 1.95
A215: T(L+IM) | B215: =B196 -> 10.34571866 | C215: =C196 -> 8.0825927
A216: gLL | B216: ='LRFR Input'!D72 -> 1.75 | C216: ='LRFR Input'!D72 -> 1.75
A217: RFi-w | B217: =(B212-B213*B214)/(B215*B216) -> 0.9450685197 | C217: =(C212-C213*C214)/(C215*C216) -> 1.209687705
A218: RFi-c | B218: =E60^2/E59^2 -> 1.220185978 | C218: =E60^2/E59^2 -> 1.220185978
A219: RFi | B219: =MIN(B217,$B$218) -> 0.9450685197 | C219: =MIN(C217,$B$218) -> 1.209687705
A222: Load Rating Summary:
B223: Load | C223: GVW | D223: Rating Factor | E223: Safe Load
A224: Inventory | B224: =B211 -> HL-93 Truck | C224: 36 | D224: =B219 -> 0.9450685197 | E224: =C224*D224 -> 34.02246671
B225: =C211 -> HL-93 Tandem | C225: 25 | D225: =C219 -> 1.209687705 | E225: 30.24219263
A226: Operating | B226: =B192 -> HL-93 Truck | C226: 36 | D226: =B200 -> 1.225088822 | E226: 44.10319758
B227: =C192 -> HL-93 Tandem | C227: 25 | D227: =C200 -> 1.429018472 | E227: 35.72546181
B228: =D192 -> NRL | C228: 40 | D228: =D200 -> 1.429018472 | E228: =C228*D228 -> 57.1607389
B229: =E192 -> SU4 | C229: 27 | D229: =E200 -> 1.429018472 | E229: 38.58349876
B230: =F192 -> SU5 | C230: 31 | D230: =F200 -> 1.429018472 | E230: 44.29957265

Sheet Output HL93, NRL, SU6, SU7
A2: Structure No: | B2: ='LRFR Input'!C2 -> 0 | C2: Bridge Name: | D2: ='LRFR Input'!E2 -> LADOTD
A3: Route/Crossing: | B3: ='LRFR Input'!C3 ->  | C3: ADTT: | D3: ='LRFR Input'!E3 -> 630
A4: Year Built: | B4: ='LRFR Input'!C4 -> 1993 | C4: Load Rated By: | D4: ='LRFR Input'!E4 -> D.N | E4: Date: | F4: ='LRFR Input'!G4 -> 2013-01-14
A5: Structure Type: | B5: ='LRFR Input'!C5 -> Corrugated Metal Pipe Arch | C5: Checked By: | D5: ='LRFR Input'!E5 -> M.H. | E5: Date: | F5: ='LRFR Input'!G5 -> 2013-01-14
A7: LRFR of In-Service, Corrugated Metal Pipe Structures
A8: Based on AASHTO LRFD Bridge Design Specifications, Section 3, 4 & 12 & NCSPA Design Data Sheet No. 19 & ODOT Bridge Design Manual 2004 (effective 10-15-2010), Section 900 & 2008 AASHTO MBE
A9: (do not use this spreadsheet to load rate Structural Plate Box Culverts)
A11: A. Design Dimensions
A12: 1. For typical structures, use the actual field measured span for calculations.
A13: 2. For unsymmetrical structures or those deflected over 5%:
A14: a. use 2 x the top radius (2 Rt) in lieu of span for calculations.
A15: b. base critical buckling stress calculations on the theoretical design span, reducing the resulting allowable buckling stress by the appropriate multiplier to account for deflection " f " (NCSPA Design Data Sheet No. 19, Figure B.1.1).
A17: 3. For all long span structures (horizontal ellipse, low and high profile arches, inverted pear shapes and pear arches), as well as other horizontal ellipses, use 2 x actual top radius (2Rt) in all cases.
B20: For typical structures : | C20: Design Span = Actual Span "S" (ft) = | E20: ='LRFR Input'!D42 -> 11.42
B22: For unsymmetrical or deflect more than 5% structures: | C22: Design Span (ft) = 2Rt = | E22: =2*'LRFR Input'!D45 -> 18.83
C23: Pipe Crown Deflection = | E23: ='LRFR Input'!D52 -> 0.05
C24: Buckling Strength Reduction Factor, f * = | E24: ='Output HL93, LA3S2, LA3, 3-3'!E24 -> 0.67
B25: * reduction factor f is based on NCSPA Design Data Sheet No 19, II Structural Evaluation A.2.b & Appendix B.1, Figure B.1.1 for Unsymmetrical structures or structures deflected over 5% only.
B28: long span structures: | C28: Design Span (ft) = 2Rt = | E28: =2*'LRFR Input'!D45 -> 18.83
A30: Structure Category: | C30: ='LRFR Input'!D40 -> Unsymmetrical or deflect over 5% (NCSPA design data sheet No. 19, II. A. 2.)
A32: Then, Span Length used in Load Rating Calculation = | D32: =IF(C30 ="Typical (NCSPA design data sheet no. 19, II. A. 1.)", E20, E22) -> 18.83 | E32: ft
A33: Then, Rt used in Load Rating Calculation = | D33: ='LRFR Input'!D45:E45 -> 9.415 | E33: ft
A34: B. Design Properties
A36: Conduits Mechanical & Section Properties:
A37: Mechanical Properties:
B38: Metal Type: | C38: ='LRFR Input'!E46 -> Steel
B39: Fy = Minimum Yield Point of the Metal | E39: =VLOOKUP(C38,'Reference tables'!C32:F36,3,FALSE) -> 33 | F39: ksi
B40: Fu = Minimum Tensile Strength of the Metal | E40: =VLOOKUP(C38,'Reference tables'!C32:F36,2,FALSE) -> 45 | F40: ksi
B41: Em = Modulus of elasticity of metal | E41: =VLOOKUP(C38,'Reference tables'!C32:F36,4,FALSE) -> 29000 | F41: ksi
A43: Section Properties:
A44: Corrugation: | B44: ='LRFR Input'!E47 -> 3 x 1 (corrugated steel pipe)
A45: Gage Number: | B45: ='LRFR Input'!E48 -> 10
A46: c (in) = | B46: =IF(B44="N/A",'LRFR Input'!E49, "") -> 
A47: d (in) = | B47: =IF(B44="N/A",'LRFR Input'!E50, "") -> 
A48: t (in) = | B48: =IF(B45="N/A", 'LRFR Input'!E51, VLOOKUP(B45,'Reference tables'!B39:C48,2,FALSE)) -> 0.138
A50: As (in2/ft) = | B50: ='LRFR Input'!D57 -> 2.008
A51: r (in) = | B51: ='LRFR Input'!D58 -> 0.3472
A52: I x 10-3 (in4/in) = | B52: ='LRFR Input'!D59 -> 20.183
A55: C. Design Calculations:
B56: Structure Type: | C56: ='LRFR Input'!D38 -> Corrugated Metal Pipe
B57: Seam Type: | C57: ='LRFR Input'!D39 -> Helical pipe w/ lock seam or fully welded seam
B58: Longitudinal Length of Structure "L" (ft) = | E58: ='LRFR Input'!D44 -> 70.5
B59: AASHTO minimum cover, h (ft) = | E59: =E22/8 -> 2.35375 | F59: =IF(AND(C56="Long Span Structural Plate (AASHTO 12.7)",B48<'Reference tables'!C17), "see * below", "") -> 
B60: Height of cover above crown "H" (ft) = | E60: ='LRFR Input'!D41 -> 2.6 | F60: =IF(E60>=E59, "", "! H<h, cover not deep enough!") -> 
B61: φloss = Section Properties reduction factor on the basis of metal loss from the materials field evaluation = | E61: =1-'LRFR Input'!D53 -> 1
B62: φ1 = Resistance Factor for wall area and buckling (Table 12.5.5-1) | E62: =IF('LRFR Input'!D38="Long Span Structural Plate",0.67,1) -> 1
B63: φ2 = Resistance Factor for seam strength (Table 12.5.5-1) | E63: =IF('LRFR Input'!D39="Annular pipe w/ spot welded, riveted or bolted seam", 0.67, IF('LRFR Input'!D39="Helical pipe w/ lock seam or fully welded seam", 1, "")) -> 1
B64: δ = Soil density (k/ft3) | E64: ='LRFR Input'!D65 -> 0.12
B65: k = soil stiffness factor = | E65: 0.22
B66: φE = Factor for Distribution of Live Load with Depth of Fill based on Backfill Type (per AASHTO LRFD 3.6.1.2.6)= | E66: ='LRFR Input'!D66 -> 1.15
A69: Calculate the fcr (critical buckling stress) : | C69: (AASHTO LRFD 12.7.2.4)
A71: if:
A73: if:
A75: Compare: | B75: S (in) = | C75: =D32*12 -> 225.96 | D75: =IF(C75>F75, ">", "<") -> > | F75: =(B51/E65)*(24*E41*1000/(E40*1000))^0.5 -> 196.2706671
A77: Therefore, | B77: fcr = | C77: =IF(C75<F75, (E40*1000-((E40*1000)^2/(48*E41*1000))*(E65*C75/B51)^2)/1000, (12*E41*1000/(E65*C75/B51)^2)/1000) -> 16.97579739 | D77: ksi
A79: Calculate the Tcap (thrust capacity of the wall) :
B80: Seam Strength (k/ft) = | C80: ='LRFR Input'!D61 -> 0
B82: Tcap = less of: | C82: 1. wall yield strength = φ1 φloss Fy A = | F82: =E39*B50*E62*E61 -> 66.264
C83: 2. wall buckling strength = f φ1 φloss fcr A = | F83: =IF('LRFR Input'!D38="Long Span Structural Plate", "N/A", IF(C30="Unsymmetrical or deflect over 5% (NCSPA design data sheet No. 19, II. A. 2.)", C77*B50*E62*E61*E24, C77*B50*E62*E61)) -> 22.83855878 | I83: =IF('LRFR Input'!D38="Long Span Structural Plate", "buckling not applicable to long spans", "") -> 
C84: 3. seam strength = φ2 x (seam strength) = | F84: =E63*C80 -> 0
A86: Therefore, | B86: Tcap = | C86: =IF('LRFR Input'!D39="Annular pipe w/ spot welded, riveted or bolted seam", MIN(F82,F83,F84), MIN(F82,F83)) -> 22.83855878 | D86: k/ft
A88: Calculate the TE (pipe wall thrust due to earth cover) :
B89: TE = higher value of : | C89: 1. δ H (S/2) = | D89: =E64*E60*D32/2 -> 2.93748 | E89: k/ft
C90: 2. δ H Rt = | D90: =E64*E60*D33 -> 2.93748 | E90: k/ft
A92: Therefore, | B92: TE = | C92: =MAX(D89,D90) -> 2.93748 | D92: k/ft
A94: Calculate the T(L+I) (pipe wall thrust due to live load plus impact) :
B95: T(L+IM) = higher value of : | C95: 1. ρ (L+IM) (S/2) = | D95: k/ft
C96: 2. ρ (L+IM) Rt = | D96: k/ft
B98: Based on AASHTO LRFD 3.6.2.2:
B99: Live load Dynamic Load Allowance, IM = | D99: 33(1.0-0.125 DE) ≥ 0%
B100: where, | C100: DE = the minimum depth of earth cover above the structure (ft)
C102: For this structure: Depth of Fill, DE = H= | D102: =E60 -> 2.6 | E102: ft
C103: IM = | D103: =IF(33*(1-0.125*D102)/100>0,33*(1-0.125*D102)/100,0) -> 0.22275
C104: (1+IM) = | D104: =1+D103 -> 1.22275
A106: Case A: | B106: Depth of Fill, H < 2 ft
B107: Calculations will be based on AASHTO LRFD 4.6.2.10.1 & 2 (case 1: traffic travels parallel to span):
B108: When Depths of Fill of Culverts < 2.0 ft,
B109: Eaxle= 96+1.44 S = | D109: =(96+1.44*D32) -> 123.1152 | E109: in
B110: Therefore, Ewheel = ½ Eaxle = | D110: =D109/24 -> 5.1298 | E110: ft
C111: Espan = LT + φE (H) = | D111: same as case B, see calculations below
B112: Where,
C113: Ewheel = equivalent distribution width perpendicular to span, = WD
C114: WD = Distributed load width/ per wheel load
C115: Espan = equivalent distribution length parallel to span, = LD
C116: LD = Distributed load length/ per wheel load
A117: Case B: | B117: Depth of Fill, H ≥ 2 ft
B118: Calculations will be based on AASHTO LRFD 3.6.1.2.5 & 6:
A130: Where, WT = Tire contact width, LT = Tire contact length, WD = Distributed load width, LD = Distributed load length
A132: The surface tire contact area for HL-93 loading (per AASHTO LRFD 3.6.1.2.5):
A133: WT = 20" = | B133: =20/12 -> 1.666666667 | C133: ft
A134: LT = 10" = | B134: =10/12 -> 0.8333333333 | C134: ft
A135: The surface tire contact area for NRL, SU6, SU7 (per AASHTO LRFD C3.6.1.2.5 Guideline):
A136: WT (in) = | B136: P/0.8
A137: LT (in) = | B137: 6.4g(1+IM/100)
A138: where, | B138: p = wheel load (kips)
B139: g = Load Factor for Special Hauling Loads gLL = | D139: ='LRFR Input'!D75 -> 1.6
B140: IM = dynamic load allowance percent
A141: So, | C141: HL-93 Tandem | D141: NRL | E141: SU6 | F141: SU7
B142: P "heavy axle" wheel load (kips) = | C142: 12.5 | D142: 8.5 | E142: 8.5 | F142: 8.5
B143: WT (ft) = | C143: =B133 -> 1.666666667 | D143: =(D142/0.8)/12 -> 0.8854166667 | E143: =(E142/0.8)/12 -> 0.8854166667 | F143: 0.8854166667
B144: LT (ft) = | C144: =B134 -> 0.8333333333 | D144: =6.4*$D$104/12*$D$139 -> 1.043413333 | E144: =6.4*$D$104/12*$D$139 -> 1.043413333 | F144: =6.4*$D$104/12*$D$139 -> 1.043413333
A146: Distribution of wheel loads through earth fills (per AASHTO LRFD 3.6.1.2.6):
A148: for HL-93 Design Truck:
B149: WD = 1.67+φEH= | C149: =20/12+E66*D102 -> 4.656666667 | D149: ft
B150: LD = 0.83 + φEH = | C150: =10/12+E66*D102 -> 3.823333333 | D150: ft
A151: for HL-93 Tandem, NRL, SU4, SU5 Trucks:
C152: HL-93 Tandem | D152: NRL | E152: SU6 | F152: SU7
B153: WD = WT + φEH = | C153: =C143+$E$66*$E$60 -> 4.656666667 | D153: 3.875416667 | E153: 3.875416667 | F153: 3.875416667
B154: LD = LT + φEH = | C154: 3.823333333 | D154: 4.033413333 | E154: 4.033413333 | F154: 4.033413333
C156: Fill depth, H = | D156: =D102 -> 2.6 | E156: =IF(D156<2, "H<2', Case A applied", IF(D156>=2, "H>=2', Case B applied", "")) -> H>=2', Case B applied
C157: Structure Total Length, L = | D157: ='LRFR Input'!D44 -> 70.5 | E157: ft
C158: [ if WD (total) > L, use L = WD (total) in the calculations ]
B159: HL-93 Truck | C159: HL-93 Tandem | D159: NRL | E159: SU6 | F159: SU7
A160: Heavy Axle Load (lbs) | B160: 32000 | C160: 25000 | D160: 17000 | E160: 17000 | F160: 17000
A161: P (1+ IM) (lbs) = | B161: =B160/2*$D$104 -> 19564 | C161: =C160/2*$D$104 -> 15284.375 | D161: =D160/2*$D$104 -> 10393.375 | E161: =E160/2*$D$104 -> 10393.375 | F161: =F160/2*$D$104 -> 10393.375
A162: * Saxle 1 (ft) = | B162: 0 | C162: 4 | D162: 4 | E162: 4 | F162: 4
A163: * Saxle 2 (ft) = | B163: 0 | C163: 0 | D163: 0 | E163: 0 | F163: 0
A164: wheel spacing on axle | B164: 6 | C164: 6 | D164: 6 | E164: 6 | F164: 6
A165: WD (ft) = | B165: =IF($D$156<2, $D$110, C149) -> 4.656666667 | C165: =IF($D$156<2, $D$110, C153) -> 4.656666667 | D165: =IF($D$156<2, $D$110, D153) -> 3.875416667 | E165: =IF($D$156<2, $D$110, E153) -> 3.875416667 | F165: =IF($D$156<2, $D$110, F153) -> 3.875416667
A166: LD (ft) = | B166: =C150 -> 3.823333333 | C166: =C154 -> 3.823333333 | D166: =D154 -> 4.033413333 | E166: =E154 -> 4.033413333 | F166: =F154 -> 4.033413333
A167: WD (total) = | B167: =IF(B165>B164, MIN(B165+B164,$D$157), MIN(B165,$D$157) ) -> 4.656666667 | C167: =IF(C165>C164, MIN(C165+C164, $D$157), MIN(C165,$D$157)) -> 4.656666667 | D167: =IF(D165>D164, MIN(D165+D164, $D$157), MIN(D165,$D$157)) -> 3.875416667 | E167: =IF(E165>E164, MIN(E165+E164, D157), MIN(E165,D157)) -> 3.875416667 | F167: =IF(F165>F164, MIN(F165+F164, D157), MIN(F165,D157)) -> 3.875416667
A168: LD (total) = | B168: =IF(B166>B162, B166+B162, B166) -> 3.823333333 | C168: =IF(C166>C162, C166+C162, C166) -> 3.823333333 | D168: =IF(D166>D162, D166+D162, D166) -> 8.033413333 | E168: =IF(E166>E162, E166+E162, E166) -> 8.033413333 | F168: =IF(F166>F162, F166+F162, F166) -> 8.033413333
A169: * AD (ft2) = | B169: =B167*B168 -> 17.80398889 | C169: =C167*C168 -> 17.80398889 | D169: =D167*D168 -> 31.13282392 | E169: =E167*E168 -> 31.13282392 | F169: =F167*F168 -> 31.13282392
A170: * PD (kips) = | B170: =IF(AND(B167>B165,B168>B166),4*B161/1000,IF(OR(B167>B165,B168>B166),2*B161/1000,B161/1000)) -> 19.564 | C170: =IF(AND(C167>C165,C168>C166),4*C161/1000,IF(OR(C167>C165,C168>C166),2*C161/1000,C161/1000)) -> 15.284375 | D170: =IF(AND(D167>D165,D168>D166),4*D161/1000,IF(OR(D167>D165,D168>D166),2*D161/1000,D161/1000)) -> 20.78675 | E170: =IF(AND(E167>E165,E168>E166),4*E161/1000,IF(OR(E167>E165,E168>E166),2*E161/1000,E161/1000)) -> 20.78675 | F170: =IF(AND(F167>F165,F168>F166),4*F161/1000,IF(OR(F167>F165,F168>F166),2*F161/1000,F161/1000)) -> 20.78675
A171: ρ (L+IM) = PD/AD = | B171: =B170/B169 -> 1.098854876 | C171: =C170/C169 -> 0.8584803718 | D171: =D170/D169 -> 0.6676795543 | E171: =E170/E169 -> 0.6676795543 | F171: =F170/F169 -> 0.6676795543
A172: T(L+IM) (k/ft) = | B172: =MAX(B171*$D$32/2, B171*$D$33) -> 10.34571866 | C172: =MAX(C171*$D$32/2, C171*$D$33) -> 8.0825927 | D172: =MAX(D171*$D$32/2, D171*$D$33) -> 6.286203004 | E172: =MAX(E171*$D$32/2, E171*$D$33) -> 6.286203004 | F172: =MAX(F171*$D$32/2, F171*$D$33) -> 6.286203004
A173: * Saxle 1 = distance to the 1st adjacent heavy axle load, if the spacing is > 4', Saxle1 = 0.
A174: Saxle 2 = distance to the 2nd adjacent heavy axle load, if the spacing is > 4', Saxle2 = 0.
A175: AD = Total Load Distributed Area
A176: PD = Total Load being Distributed
A177: Transverse pressure overlaps are considered. Longitudinal pressure overlaps are considered for two adjacent heavy axle loads when the Saxle is ≤ 4 feet.
A180: D. Load Rating Factors for Ring Compression Structures:
A181: 1. Operating Load Rating Factor (RFO):
A182: a. RFO based on wall strength
A185: b. RFO based on minimum cover requirements
B188: Where, | D188: =IF((2.36*E60/D32+0.528)>1, 1, 2.36*E60/D32+0.528) -> 0.8538629846
B189: So, RFO-C = | C189: =E60^2/(D188*(E59)^2) -> 1.429018472
A191: Operating Load Rating Factors, RFO
B192: HL-93 Truck | C192: HL-93 Tandem | D192: NRL | E192: SU6 | F192: SU7
A193: Tcap | B193: =$C$86 -> 22.83855878 | C193: =$C$86 -> 22.83855878 | D193: 22.83855878 | E193: 22.83855878 | F193: 22.83855878
A194: TE | B194: =$C$92 -> 2.93748 | C194: =$C$92 -> 2.93748 | D194: 2.93748 | E194: 2.93748 | F194: 2.93748
A195: gEV | B195: ='LRFR Input'!D71 -> 1.95 | C195: ='LRFR Input'!D71 -> 1.95 | D195: ='LRFR Input'!D71 -> 1.95 | E195: ='LRFR Input'!D71 -> 1.95 | F195: ='LRFR Input'!D71 -> 1.95
A196: T(L+IM) | B196: =B172 -> 10.34571866 | C196: =C172 -> 8.0825927 | D196: 6.286203004 | E196: 6.286203004 | F196: 6.286203004
A197: gLL | B197: ='LRFR Input'!D73 -> 1.35 | C197: ='LRFR Input'!D73 -> 1.35 | D197: ='LRFR Input'!D75 -> 1.6 | E197: ='LRFR Input'!D75 -> 1.6 | F197: ='LRFR Input'!D75 -> 1.6
A198: RFO-W | B198: =(B193-B195*B194)/(B196*B197) -> 1.225088822 | C198: =(C193-C195*C194)/(C196*C197) -> 1.568113692 | D198: 1.701193149 | E198: 1.701193149 | F198: =(F193-F195*F194)/(F196*F197) -> 1.701193149
A199: RFO-C | B199: =$C$189 -> 1.429018472 | C199: =$C$189 -> 1.429018472 | D199: 1.429018472 | E199: 1.429018472 | F199: 1.429018472
A200: RFO | B200: =MIN(B198,$B$199) -> 1.225088822 | C200: =MIN(C198,$B$199) -> 1.429018472 | D200: 1.429018472 | E200: 1.429018472 | F200: 1.429018472
A203: 2. Inventory Load Rating Factor (RFi):
A204: a. RFi based on wall strength
A207: b. RFi based on minimum cover requirements
A210: Inventory Load Rating Factor, RFi
B211: HL-93 Truck | C211: HL-93 Tandem
A212: Tcap | B212: =B193 -> 22.83855878 | C212: =C193 -> 22.83855878
A213: TE | B213: =B194 -> 2.93748 | C213: =C194 -> 2.93748
A214: gEV | B214: ='LRFR Input'!D71 -> 1.95 | C214: ='LRFR Input'!D71 -> 1.95
A215: T(L+IM) | B215: =B196 -> 10.34571866 | C215: =C196 -> 8.0825927
A216: gLL | B216: ='LRFR Input'!D72 -> 1.75 | C216: ='LRFR Input'!D72 -> 1.75
A217: RFi-w | B217: =(B212-B213*B214)/(B215*B216) -> 0.9450685197 | C217: =(C212-C213*C214)/(C215*C216) -> 1.209687705
A218: RFi-c | B218: =E60^2/E59^2 -> 1.220185978 | C218: =E60^2/E59^2 -> 1.220185978
A219: RFi | B219: =MIN(B217,$B$218) -> 0.9450685197 | C219: =MIN(C217,$B$218) -> 1.209687705
A222: Load Rating Summary:
B223: Load | C223: GVW | D223: Rating Factor | E223: Safe Load
A224: Inventory | B224: =B211 -> HL-93 Truck | C224: 36 | D224: =B219 -> 0.9450685197 | E224: =C224*D224 -> 34.02246671
B225: =C211 -> HL-93 Tandem | C225: 25 | D225: =C219 -> 1.209687705 | E225: 30.24219263
A226: Operating | B226: =B192 -> HL-93 Truck | C226: 36 | D226: =B200 -> 1.225088822 | E226: 44.10319758
B227: =C192 -> HL-93 Tandem | C227: 25 | D227: =C200 -> 1.429018472 | E227: 35.72546181
B228: =D192 -> NRL | C228: 40 | D228: =D200 -> 1.429018472 | E228: =C228*D228 -> 57.1607389
B229: =E192 -> SU6 | C229: 34.75 | D229: =E200 -> 1.429018472 | E229: 49.65839192
B230: =F192 -> SU7 | C230: 38.75 | D230: =F200 -> 1.429018472 | E230: 55.37446581

Sheet Output HL93, OFRD1, 2 & 3
A2: Structure No: | B2: ='LRFR Input'!C2 -> 0 | C2: Bridge Name: | D2: ='LRFR Input'!E2 -> LADOTD
A3: Route/Crossing: | B3: ='LRFR Input'!C3 ->  | C3: ADTT: | D3: ='LRFR Input'!E3 -> 630
A4: Year Built: | B4: ='LRFR Input'!C4 -> 1993 | C4: Load Rated By: | D4: ='LRFR Input'!E4 -> D.N | E4: Date: | F4: ='LRFR Input'!G4 -> 2013-01-14
A5: Structure Type: | B5: ='LRFR Input'!C5 -> Corrugated Metal Pipe Arch | C5: Checked By: | D5: ='LRFR Input'!E5 -> M.H. | E5: Date: | F5: ='LRFR Input'!G5 -> 2013-01-14
A7: LRFR of In-Service, Corrugated Metal Pipe Structures
A8: Based on AASHTO LRFD Bridge Design Specifications, Section 3, 4 & 12 & NCSPA Design Data Sheet No. 19 & ODOT Bridge Design Manual 2004 (effective 10-15-2010), Section 900 & 2008 AASHTO MBE
A9: (do not use this spreadsheet to load rate Structural Plate Box Culverts)
A11: A. Design Dimensions
A12: 1. For typical structures, use the actual field measured span for calculations.
A13: 2. For unsymmetrical structures or those deflected over 5%:
A14: a. use 2 x the top radius (2 Rt) in lieu of span for calculations.
A15: b. base critical buckling stress calculations on the theoretical design span, reducing the resulting allowable buckling stress by the appropriate multiplier to account for deflection " f " (NCSPA Design Data Sheet No. 19, Figure B.1.1).
A17: 3. For all long span structures (horizontal ellipse, low and high profile arches, inverted pear shapes and pear arches), as well as other horizontal ellipses, use 2 x actual top radius (2Rt) in all cases.
B20: For typical structures : | C20: Design Span = Actual Span "S" (ft) = | E20: ='LRFR Input'!D42 -> 11.42
B22: For unsymmetrical or deflect more than 5% structures: | C22: Design Span (ft) = 2Rt = | E22: =2*'LRFR Input'!D45 -> 18.83
C23: Pipe Crown Deflection = | E23: ='LRFR Input'!D52 -> 0.05
C24: Buckling Strength Reduction Factor, f * = | E24: ='Output HL93, LA3S2, LA3, 3-3'!E24 -> 0.67
B25: * reduction factor f is based on NCSPA Design Data Sheet No 19, II Structural Evaluation A.2.b & Appendix B.1, Figure B.1.1 for Unsymmetrical structures or structures deflected over 5% only.
B28: long span structures: | C28: Design Span (ft) = 2Rt = | E28: =2*'LRFR Input'!D45 -> 18.83
A30: Structure Category: | C30: ='LRFR Input'!D40 -> Unsymmetrical or deflect over 5% (NCSPA design data sheet No. 19, II. A. 2.)
A32: Then, Span Length used in Load Rating Calculation = | D32: =IF(C30 ="Typical (NCSPA design data sheet no. 19, II. A. 1.)", E20, E22) -> 18.83 | E32: ft
A33: Then, Rt used in Load Rating Calculation = | D33: ='LRFR Input'!D45:E45 -> 9.415 | E33: ft
A34: B. Design Properties
A36: Conduits Mechanical & Section Properties:
A37: Mechanical Properties:
B38: Metal Type: | C38: ='LRFR Input'!E46 -> Steel
B39: Fy = Minimum Yield Point of the Metal | E39: =VLOOKUP(C38,'Reference tables'!C32:F36,3,FALSE) -> 33 | F39: ksi
B40: Fu = Minimum Tensile Strength of the Metal | E40: =VLOOKUP(C38,'Reference tables'!C32:F36,2,FALSE) -> 45 | F40: ksi
B41: Em = Modulus of elasticity of metal | E41: =VLOOKUP(C38,'Reference tables'!C32:F36,4,FALSE) -> 29000 | F41: ksi
A43: Section Properties:
A44: Corrugation: | B44: ='LRFR Input'!E47 -> 3 x 1 (corrugated steel pipe)
A45: Gage Number: | B45: ='LRFR Input'!E48 -> 10
A46: c (in) = | B46: =IF(B44="N/A",'LRFR Input'!E49, "") -> 
A47: d (in) = | B47: =IF(B44="N/A",'LRFR Input'!E50, "") -> 
A48: t (in) = | B48: =IF(B45="N/A", 'LRFR Input'!E51, VLOOKUP(B45,'Reference tables'!B39:C48,2,FALSE)) -> 0.138
A50: As (in2/ft) = | B50: ='LRFR Input'!D57 -> 2.008
A51: r (in) = | B51: ='LRFR Input'!D58 -> 0.3472
A52: I x 10-3 (in4/in) = | B52: ='LRFR Input'!D59 -> 20.183
A55: C. Design Calculations:
B56: Structure Type: | C56: ='LRFR Input'!D38 -> Corrugated Metal Pipe
B57: Seam Type: | C57: ='LRFR Input'!D39 -> Helical pipe w/ lock seam or fully welded seam
B58: Longitudinal Length of Structure "L" (ft) = | E58: ='LRFR Input'!D44 -> 70.5
B59: AASHTO minimum cover, h (ft) = | E59: =E22/8 -> 2.35375 | F59: =IF(AND(C56="Long Span Structural Plate (AASHTO 12.7)",B48<'Reference tables'!C17), "see * below", "") -> 
B60: Height of cover above crown "H" (ft) = | E60: ='LRFR Input'!D41 -> 2.6 | F60: =IF(E60>=E59, "", "! H<h, cover not deep enough!") -> 
B61: φloss = Section Properties reduction factor on the basis of metal loss from the materials field evaluation = | E61: =1-'LRFR Input'!D53 -> 1
B62: φ1 = Resistance Factor for wall area and buckling (Table 12.5.5-1) | E62: =IF('LRFR Input'!D38="Long Span Structural Plate",0.67,1) -> 1
B63: φ2 = Resistance Factor for seam strength (Table 12.5.5-1) | E63: =IF('LRFR Input'!D39="Annular pipe w/ spot welded, riveted or bolted seam", 0.67, IF('LRFR Input'!D39="Helical pipe w/ lock seam or fully welded seam", 1, "")) -> 1
B64: δ = Soil density (k/ft3) | E64: ='LRFR Input'!D65 -> 0.12
B65: k = soil stiffness factor = | E65: 0.22
B66: φE = Factor for Distribution of Live Load with Depth of Fill based on Backfill Type (per AASHTO LRFD 3.6.1.2.6)= | E66: ='LRFR Input'!D66 -> 1.15
A69: Calculate the fcr (critical buckling stress) : | C69: (AASHTO LRFD 12.7.2.4)
A71: if:
A73: if:
A75: Compare: | B75: S (in) = | C75: =D32*12 -> 225.96 | D75: =IF(C75>F75, ">", "<") -> > | F75: =(B51/E65)*(24*E41*1000/(E40*1000))^0.5 -> 196.2706671
A77: Therefore, | B77: fcr = | C77: =IF(C75<F75, (E40*1000-((E40*1000)^2/(48*E41*1000))*(E65*C75/B51)^2)/1000, (12*E41*1000/(E65*C75/B51)^2)/1000) -> 16.97579739 | D77: ksi
A79: Calculate the Tcap (thrust capacity of the wall) :
B80: Seam Strength (k/ft) = | C80: ='LRFR Input'!D61 -> 0
B82: Tcap = less of: | C82: 1. wall yield strength = φ1 φloss Fy A = | F82: =E39*B50*E62*E61 -> 66.264
C83: 2. wall buckling strength = f φ1 φloss fcr A = | F83: =IF('LRFR Input'!D38="Long Span Structural Plate", "N/A", IF(C30="Unsymmetrical or deflect over 5% (NCSPA design data sheet No. 19, II. A. 2.)", C77*B50*E62*E61*E24, C77*B50*E62*E61)) -> 22.83855878 | I83: =IF('LRFR Input'!D38="Long Span Structural Plate", "buckling not applicable to long spans", "") -> 
C84: 3. seam strength = φ2 x (seam strength) = | F84: =E63*C80 -> 0
A86: Therefore, | B86: Tcap = | C86: =IF('LRFR Input'!D39="Annular pipe w/ spot welded, riveted or bolted seam", MIN(F82,F83,F84), MIN(F82,F83)) -> 22.83855878 | D86: k/ft
A88: Calculate the TE (pipe wall thrust due to earth cover) :
B89: TE = higher value of : | C89: 1. δ H (S/2) = | D89: =E64*E60*D32/2 -> 2.93748 | E89: k/ft
C90: 2. δ H Rt = | D90: =E64*E60*D33 -> 2.93748 | E90: k/ft
A92: Therefore, | B92: TE = | C92: =MAX(D89,D90) -> 2.93748 | D92: k/ft
A94: Calculate the T(L+I) (pipe wall thrust due to live load plus impact) :
B95: T(L+IM) = higher value of : | C95: 1. ρ (L+IM) (S/2) = | D95: k/ft
C96: 2. ρ (L+IM) Rt = | D96: k/ft
B98: Based on AASHTO LRFD 3.6.2.2:
B99: Live load Dynamic Load Allowance, IM = | D99: 33(1.0-0.125 DE) ≥ 0%
B100: where, | C100: DE = the minimum depth of earth cover above the structure (ft)
C102: For this structure: Depth of Fill, DE = H= | D102: =E60 -> 2.6 | E102: ft
C103: IM = | D103: =IF(33*(1-0.125*D102)/100>0,33*(1-0.125*D102)/100,0) -> 0.22275
C104: (1+IM) = | D104: =1+D103 -> 1.22275
A106: Case A: | B106: Depth of Fill, H < 2 ft
B107: Calculations will be based on AASHTO LRFD 4.6.2.10.1 & 2 (case 1: traffic travels parallel to span):
B108: When Depths of Fill of Culverts < 2.0 ft,
B109: Eaxle= 96+1.44 S = | D109: =(96+1.44*D32) -> 123.1152 | E109: in
B110: Therefore, Ewheel = ½ Eaxle = | D110: =D109/24 -> 5.1298 | E110: ft
C111: Espan = LT + φE (H) = | D111: same as case B, see calculations below
B112: Where,
C113: Ewheel = equivalent distribution width perpendicular to span, = WD
C114: WD = Distributed load width/ per wheel load
C115: Espan = equivalent distribution length parallel to span, = LD
C116: LD = Distributed load length/ per wheel load
A117: Case B: | B117: Depth of Fill, H ≥ 2 ft
B118: Calculations will be based on AASHTO LRFD 3.6.1.2.5 & 6:
A130: Where, WT = Tire contact width, LT = Tire contact length, WD = Distributed load width, LD = Distributed load length
A132: The surface tire contact area for HL-93 loading (per AASHTO LRFD 3.6.1.2.5):
A133: WT = 20" = | B133: =20/12 -> 1.666666667 | C133: ft
A134: LT = 10" = | B134: =10/12 -> 0.8333333333 | C134: ft
A135: The surface tire contact area for OFRD #1, OFRD #2, OFRD #3 (per AASHTO LRFD C3.6.1.2.5 Guideline):
A136: WT (in) = | B136: P/0.8
A137: LT (in) = | B137: 6.4g(1+IM/100)
A138: where, | B138: p = wheel load (kips) | D138: OFRD #1 | E138: OFRD #2 | F138: OFRD #3
B139: g = Load Factor for Routine Permit Loads gLL = | D139: ='LRFR Input'!D76 -> 1.47 | E139: ='LRFR Input'!D77 -> 1.38 | F139: ='LRFR Input'!D78 -> 1.3
B140: IM = dynamic load allowance percent
A141: So, | C141: HL-93 Tandem | D141: OFRD #1 | E141: OFRD #2 | F141: OFRD #3
B142: P "heavy axle" wheel load (kips) = | C142: 12.5 | D142: 18.1 | E142: 14.25 | F142: 13
B143: WT (ft) = | C143: =B133 -> 1.666666667 | D143: =(D142/0.8)/12 -> 1.885416667 | E143: =(E142/0.8)/12 -> 1.484375 | F143: 1.354166667
B144: LT (ft) = | C144: =B134 -> 0.8333333333 | D144: =6.4*$D$104/12*$D$139 -> 0.958636 | E144: =6.4*$D$104/12*$E$139 -> 0.899944 | F144: =6.4*$D$104/12*$F$139 -> 0.8477733333
A146: Distribution of wheel loads through earth fills (per AASHTO LRFD 3.6.1.2.6):
A148: for HL-93 Design Truck:
B149: WD = 1.67+φEH= | C149: =20/12+E66*D102 -> 4.656666667 | D149: ft
B150: LD = 0.83 + φEH = | C150: =10/12+E66*D102 -> 3.823333333 | D150: ft
A151: for HL-93 Tandem, OFRD #1, OFRD #2, OFRD #3 Trucks:
C152: HL-93 Tandem | D152: OFRD #1 | E152: OFRD #2 | F152: OFRD #3
B153: WD = WT + φEH = | C153: =C143+$E$66*$E$60 -> 4.656666667 | D153: 4.875416667 | E153: 4.474375 | F153: 4.344166667
B154: LD = LT + φEH = | C154: 3.823333333 | D154: 3.948636 | E154: 3.889944 | F154: 3.837773333
C156: Fill depth, H = | D156: =D102 -> 2.6 | E156: =IF(D156<2, "H<2', Case A applied", IF(D156>=2, "H>=2', Case B applied", "")) -> H>=2', Case B applied
C157: Structure Total Length, L = | D157: ='LRFR Input'!D44 -> 70.5 | E157: ft
C158: [ if WD (total) > L, use L = WD (total) in the calculations ]
B159: HL-93 Truck | C159: HL-93 Tandem | D159: OFRD #1 | E159: OFRD #2 | F159: OFRD #3
A160: Heavy Axle Load (lbs) | B160: 32000 | C160: 25000 | D160: 36200 | E160: 28500 | F160: 26000
A161: P (1+ IM) (lbs) = | B161: =B160/2*$D$104 -> 19564 | C161: =C160/2*$D$104 -> 15284.375 | D161: =D160/2*$D$104 -> 22131.775 | E161: =E160/2*$D$104 -> 17424.1875 | F161: =F160/2*$D$104 -> 15895.75
A162: * Saxle 1 (ft) = | B162: 0 | C162: 4 | D162: 4.5 | E162: 5.4 | F162: 5.4
A163: * Saxle 2 (ft) = | B163: 0 | C163: 0 | D163: 0 | E163: 0 | F163: 5.4
A164: wheel spacing on axle | B164: 6 | C164: 6 | D164: 6 | E164: 6 | F164: 6
A165: WD (ft) = | B165: =IF($D$156<2, $D$110, C149) -> 4.656666667 | C165: =IF($D$156<2, $D$110, C153) -> 4.656666667 | D165: =IF($D$156<2, $D$110, D153) -> 4.875416667 | E165: =IF($D$156<2, $D$110, E153) -> 4.474375 | F165: =IF($D$156<2, $D$110, F153) -> 4.344166667
A166: LD (ft) = | B166: =C150 -> 3.823333333 | C166: =C154 -> 3.823333333 | D166: =D154 -> 3.948636 | E166: =E154 -> 3.889944 | F166: =F154 -> 3.837773333
A167: WD (total) = | B167: =IF(B165>B164, MIN(B165+B164,$D$157), MIN(B165,$D$157) ) -> 4.656666667 | C167: =IF(C165>C164, MIN(C165+C164, $D$157), MIN(C165,$D$157)) -> 4.656666667 | D167: =IF(D165>D164, MIN(D165+D164, $D$157), MIN(D165,$D$157)) -> 4.875416667 | E167: =IF(E165>E164, MIN(E165+E164, D157), MIN(E165,D157)) -> 4.474375 | F167: =IF(F165>F164, MIN(F165+F164, D157), MIN(F165,D157)) -> 4.344166667
A168: LD (total) = | B168: =IF(B166>B162, B166+B162, B166) -> 3.823333333 | C168: =IF(C166>C162, C166+C162, C166) -> 3.823333333 | D168: =IF(D166>D162, D166+D162, D166) -> 3.948636 | E168: =IF(E166>E162, E166+E162, E166) -> 3.889944 | F168: =IF(F166>F162, F166+F162+F163, F166) -> 3.837773333
A169: * AD (ft2) = | B169: =B167*B168 -> 17.80398889 | C169: =C167*C168 -> 17.80398889 | D169: =D167*D168 -> 19.25124576 | E169: =E167*E168 -> 17.40506819 | F169: =F167*F168 -> 16.67192699
A170: * PD (kips) = | B170: =IF(AND(B167>B165,B168>B166),4*B161/1000,IF(OR(B167>B165,B168>B166),2*B161/1000,B161/1000)) -> 19.564 | C170: =IF(AND(C167>C165,C168>C166),4*C161/1000,IF(OR(C167>C165,C168>C166),2*C161/1000,C161/1000)) -> 15.284375 | D170: =IF(AND(D167>D165,D168>D166),4*D161/1000,IF(OR(D167>D165,D168>D166),2*D161/1000,D161/1000)) -> 22.131775 | E170: =IF(AND(E167>E165,E168>E166),4*E161/1000,IF(OR(E167>E165,E168>E166),2*E161/1000,E161/1000)) -> 17.4241875 | F170: =IF(AND(F167>F165,F168>F166),6*F161/1000,IF(F168>F166,3*F161/1000,IF(F167>F165,2*F161/1000,F161/1000))) -> 15.89575
A171: ρ (L+IM) = PD/AD = | B171: =B170/B169 -> 1.098854876 | C171: =C170/C169 -> 0.8584803718 | D171: =D170/D169 -> 1.149628199 | E171: =E170/E169 -> 1.001098491 | F171: =F170/F169 -> 0.9534440746
A172: T(L+IM) (k/ft) = | B172: =MAX(B171*$D$32/2, B171*$D$33) -> 10.34571866 | C172: =MAX(C171*$D$32/2, C171*$D$33) -> 8.0825927 | D172: =MAX(D171*$D$32/2, D171*$D$33) -> 10.82374949 | E172: =MAX(E171*$D$32/2, E171*$D$33) -> 9.425342295 | F172: =MAX(F171*$D$32/2, F171*$D$33) -> 8.976675963
A173: * Saxle 1 = distance to the 1st adjacent heavy axle load, if the spacing is > 4', Saxle1 = 0.
A174: Saxle 2 = distance to the 2nd adjacent heavy axle load, if the spacing is > 4', Saxle2 = 0.
A175: AD = Total Load Distributed Area
A176: PD = Total Load being Distributed
A177: Transverse pressure overlaps are considered. Longitudinal pressure overlaps are considered for two adjacent heavy axle loads when the Saxle is ≤ 4 feet.
A180: D. Load Rating Factors for Ring Compression Structures:
A181: 1. Operating Load Rating Factor (RFO):
A182: a. RFO based on wall strength
A185: b. RFO based on minimum cover requirements
B188: Where, | D188: =IF((2.36*E60/D32+0.528)>1, 1, 2.36*E60/D32+0.528) -> 0.8538629846
B189: So, RFO-C = | C189: =E60^2/(D188*(E59)^2) -> 1.429018472
A191: Operating Load Rating Factors, RFO
B192: HL-93 Truck | C192: HL-93 Tandem | D192: OFRD #1 | E192: OFRD #2 | F192: OFRD #3
A193: Tcap | B193: =$C$86 -> 22.83855878 | C193: =$C$86 -> 22.83855878 | D193: =$C$86 -> 22.83855878 | E193: =$C$86 -> 22.83855878 | F193: =$C$86 -> 22.83855878
A194: TE | B194: =$C$92 -> 2.93748 | C194: =$C$92 -> 2.93748 | D194: =$C$92 -> 2.93748 | E194: =$C$92 -> 2.93748 | F194: =$C$92 -> 2.93748
A195: gEV | B195: ='LRFR Input'!D71 -> 1.95 | C195: ='LRFR Input'!D71 -> 1.95 | D195: ='LRFR Input'!D71 -> 1.95 | E195: ='LRFR Input'!D71 -> 1.95 | F195: ='LRFR Input'!D71 -> 1.95
A196: T(L+IM) | B196: =B172 -> 10.34571866 | C196: =C172 -> 8.0825927 | D196: 10.82374949 | E196: 9.425342295 | F196: 8.976675963
A197: gLL | B197: ='LRFR Input'!D73 -> 1.35 | C197: ='LRFR Input'!D73 -> 1.35 | D197: ='LRFR Input'!D76 -> 1.47 | E197: ='LRFR Input'!D77 -> 1.38 | F197: ='LRFR Input'!D78 -> 1.3
A198: RFO-W | B198: =(B193-B195*B194)/(B196*B197) -> 1.225088822 | C198: =(C193-C195*C194)/(C196*C197) -> 1.568113692 | D198: 1.075392349 | E198: 1.315484672 | F198: =(F193-F195*F194)/(F196*F197) -> 1.466233402
A199: RFO-C | B199: =$C$189 -> 1.429018472 | C199: =$C$189 -> 1.429018472 | D199: =$C$189 -> 1.429018472 | E199: =$C$189 -> 1.429018472 | F199: =$C$189 -> 1.429018472
A200: RFO | B200: =MIN(B198,$B$199) -> 1.225088822 | C200: =MIN(C198,$B$199) -> 1.429018472 | D200: 1.075392349 | E200: 1.315484672 | F200: 1.429018472
A203: 2. Inventory Load Rating Factor (RFi):
A204: a. RFi based on wall strength
A207: b. RFi based on minimum cover requirements
A210: Inventory Load Rating Factor, RFi
B211: HL-93 Truck | C211: HL-93 Tandem
A212: Tcap | B212: =B193 -> 22.83855878 | C212: =C193 -> 22.83855878
A213: TE | B213: =B194 -> 2.93748 | C213: =C194 -> 2.93748
A214: gEV | B214: ='LRFR Input'!D71 -> 1.95 | C214: ='LRFR Input'!D71 -> 1.95
A215: T(L+IM) | B215: =B196 -> 10.34571866 | C215: =C196 -> 8.0825927 | L215: 72 | M215: 0.21 | N215: =M215*L215 -> 15.12
A216: gLL | B216: ='LRFR Input'!D72 -> 1.75 | C216: ='LRFR Input'!D72 -> 1.75 | L216: 50 | M216: 0.27 | N216: =M216*L216 -> 13.5
A217: RFi-w | B217: =(B212-B213*B214)/(B215*B216) -> 0.9450685197 | C217: =(C212-C213*C214)/(C215*C216) -> 1.209687705 | L217: 72 | M217: 0.27 | N217: 19.44
A218: RFi-c | B218: =E60^2/E59^2 -> 1.220185978 | C218: =E60^2/E59^2 -> 1.220185978 | L218: 50 | M218: 0.35 | N218: 17.5
A219: RFi | B219: =MIN(B217,$B$218) -> 0.9450685197 | C219: =MIN(C217,$B$218) -> 1.209687705 | L219: 73 | M219: 0.36 | N219: 26.28
L220: 41 | M220: 0.36 | N220: 14.76
L221: 80 | M221: 0.4 | N221: 32
A222: Load Rating Summary: | L222: 80 | M222: 0.32 | N222: 25.6
B223: Load | C223: GVW | D223: Rating Factor | E223: Safe Load | L223: 88 | M223: 0.32 | N223: 28.16
A224: Inventory | B224: =B211 -> HL-93 Truck | C224: 36 | D224: =B219 -> 0.9450685197 | E224: =C224*D224 -> 34.02246671 | L224: 80 | M224: 0.38 | N224: 30.4
B225: =C211 -> HL-93 Tandem | C225: 25 | D225: =C219 -> 1.209687705 | E225: 30.24219263 | L225: 54 | M225: 0.38 | N225: 20.52
A226: Operating | B226: =B192 -> HL-93 Truck | C226: 36 | D226: =B200 -> 1.225088822 | E226: 44.10319758 | L226: 62 | M226: 0.38 | N226: 23.56
B227: =C192 -> HL-93 Tandem | C227: 25 | D227: =C200 -> 1.429018472 | E227: 35.72546181 | L227: 69.5 | M227: 0.38 | N227: 26.41
B228: =D192 -> OFRD #1 | C228: 66.35 | D228: =D200 -> 1.075392349 | E228: =C228*D228 -> 71.35228238 | L228: 77.5 | M228: 0.38 | N228: 29.45
B229: =E192 -> OFRD #2 | C229: 71.25 | D229: =E200 -> 1.315484672 | E229: 93.72828287 | L229: 132.6 | M229: 0.24 | N229: 31.824
B230: =F192 -> OFRD #3 | C230: 104.5 | D230: =F200 -> 1.429018472 | E230: 149.3324304 | L230: 142.5 | M230: 0.29 | N230: 41.325
L231: 209 | M231: 0.33 | N231: 68.97

Sheet Reference tables
D1: Minimum Cover (ft.) | E1: ←AASHTO DEFINED MINIMUM COVER (AASHTO LRFD table 12.6.6.3-1 & table 12.8.3.1.1-1 for long-span)
B2: Structure Type: | C2: Corrugated Metal Pipe
C3: Spiral Rib Steel Pipe | D3: =MAX('Output HL93, LA3S2, LA3, 3-3'!D32/4,1) -> 4.7075
C4: Spiral Rib Aluminum Pipe | D4: =IF('Output HL93, LA3S2, LA3, 3-3'!D32*12<=48,MAX('Output HL93, LA3S2, LA3, 3-3'!D32/2,1),MAX('Output HL93, LA3S2, LA3, 3-3'!D32/2.75,1)) -> 6.847272727
C5: Structural Plate Pipe | D5: =MAX('Output HL93, LA3S2, LA3, 3-3'!D32/8,1) -> 2.35375
C6: Long Span Structural Plate | D6: =IF('LRFR Input'!D38="Long Span Structural Plate",VLOOKUP('Output HL93, LA3S2, LA3, 3-3'!B48,B22:C28,2),"") -> 
B8: Seam Type: | C8: Annular pipe w/ spot welded, riveted or bolted seam
C9: Helical pipe w/ lock seam or fully welded seam
B11: Structure Category: | C11: Typical (NCSPA design data sheet No. 19, II. A. 1.)
C12: Unsymmetrical or deflect over 5% (NCSPA design data sheet No. 19, II. A. 2.)
C13: Long span (NCSPA design data sheet No. 19, II. A. 3.)
B15: Long Span Structural Plate Structures Minimum Top Arc Thickness Chart (in) (AASHTO LRFD Table 12.8.3.1.1-1)
C16: 6 x 2 corrugated steel plates
B17: Min. = | C17: =IF(C21=">= 15'",0.109,IF(C21="15'-17'",0.138,IF(C21="17'-20'",0.168,IF(C21="20'-23'",0.218,IF(C21="23'-25'",0.249,""))))) -> 0.109 | D17: in
B19: Long Span Structural Plate Structures Minimum Cover Chart (ft.) (AASHTO LRFD Table 12.8.3.1.1-1)
B20: Rt = | C20: ='Output HL93, LA3S2, LA3, 3-3'!D33 -> 9.415 | D20: ft
B21: Steel Thickness | C21: =IF(C20<=15,">= 15'", IF(C20<17,"15'-17'",IF(C20<20,"17'-20'",IF(C20<23,"20'-23'","23'-25'")))) -> >= 15' | D21: ← Rt range
B22: 0.109 | C22: =IF(C21=">= 15'",2.5,"") -> 2.5
B23: 0.138 | C23: =IF(C21=">= 15'",2.5,IF(C21="15'-17'",3, "")) -> 2.5
B24: 0.168 | C24: =IF(C21=">= 15'",2.5,IF(C21="15'-17'",3,IF(C21="17'-20'",3,""))) -> 2.5
B25: 0.188 | C25: =IF(C21=">= 15'",2.5,IF(C21="15'-17'",3,IF(C21="17'-20'",3,""))) -> 2.5
B26: 0.218 | C26: =IF(C21=">= 15'",2,IF(C21="15'-17'",2.5,IF(C21="17'-20'",2.5,IF(C21="20'-23'",3,"")))) -> 2
B27: 0.249 | C27: =IF(C21=">= 15'",2,IF(C21="15'-17'",2,IF(C21="17'-20'",2.5,IF(C21="20'-23'",3,4)))) -> 2
B28: 0.28 | C28: =IF(C21=">= 15'",2,IF(C21="15'-17'",2,IF(C21="17'-20'",2.5,IF(C21="20'-23'",3,4)))) -> 2
C31: From AASHTO LRFD SECTION 12, APPENDIX A12 | D31: Fu (ksi) | E31: Fy (ksi) | F31: E (ksi)
B32: Metal Type: | C32: Steel | D32: 45 | E32: 33 | F32: 29000
C33: Aluminum-structural plate (thickness 0.100" - 0.175") | D33: 35 | E33: 24 | F33: 10000
C34: Aluminum-structural plate (thickness 0.176" - 0.250") | D34: 34 | E34: 24 | F34: 10000
C35: Aluminum-corrugated metal (Grade 3004-H34) | D35: 31 | E35: 24 | F35: 10000
C36: Aluminum-corrugated metal (Grade 3004-H32) | D36: 27 | E36: 20 | F36: 10000
B38: Gage Number | C38: Metal Thickness (in)
B39: 16 | C39: 0.064
B40: 14 | C40: 0.079
B41: 12 | C41: 0.109
B42: 10 | C42: 0.138
B43: 8 | C43: 0.168
B44: 7 | C44: 0.188
B45: 5 | C45: 0.218
B46: 3 | C46: 0.249
B47: 1 | C47: 0.28
B48: N/A | C48: ='LRFR Input'!E51 -> 0 | D48: ←from field measurement
B51: corrugation | C51: 1½ x ¼ (corrugated steel pipe)
C52: 2⅔ x ½ (corrugated steel pipe)
C53: 3 x 1 (corrugated steel pipe)
C54: 5 x 1 (corrugated steel pipe)
C55: ¾ x ¾ x 7½ (spiral rib steel pipe)
C56: ¾ x 1 x 11½ (spiral rib steel pipe)
C57: 6 x 2 (steel structural plate pipe)
C58: 1½ x ¼ (corrugated aluminum pipe)
C59: 2⅔ x ½ (corrugated aluminum pipe)
C60: 3 x 1 (corrugated aluminum pipe)
C61: 6 x 1 (corrugated aluminum pipe)
C62: ¾ x ¾ x 7½ (aluminum spiral rib pipe)
C63: ¾ x 1 x 11½ (aluminum spiral rib pipe)
C64: 9 x 2½ (aluminum structural plate pipe)
C65: N/A

Sheet section property tables
A1: Cross-Section Properties | H1: From AASHTO LRFD SECTION 12, APPENDIX A12
A2: Steel | C2: 1½ x ¼ (corrugated steel pipe) | F2: 2⅔ x ½ (corrugated steel pipe) | I2: 3 x 1 (corrugated steel pipe) | M2: 5 x 1 (corrugated steel pipe) | P2: ¾ x ¾ x 7½ (spiral rib steel pipe) | S2: ¾ x 1 x 11½ (spiral rib steel pipe) | V2: 6 x 2 (steel structural plate pipe)
A3: Gage # | B3: Thickness (in) | C3: As (in2/ft) | D3: r (in) | E3: I x 10-3(in4/in) | F3: As (in2/ft) | G3: r (in) | H3: I x 10-3(in4/in) | I3: As (in2/ft) | J3: r (in) | K3: I x 10-3(in4/in) | M3: As (in2/ft) | N3: r (in) | O3: I x 10-3(in4/in) | P3: As (in2/ft) | Q3: r (in) | R3: I x 10-3(in4/in) | S3: As (in2/ft) | T3: r (in) | U3: I x 10-3(in4/in) | V3: As (in2/ft) | W3: r (in) | X3: I x 10-3(in4/in)
B4: 0.028 | C4: 0.304
B5: 0.034 | C5: 0.38
B6: 0.04 | C6: 0.456 | D6: 0.0816 | E6: =0.253 -> 0.253 | F6: 0.465 | G6: 0.1702 | H6: 1.121
B7: 0.052 | C7: 0.608 | D7: 0.0824 | E7: 0.344 | F7: 0.619 | G7: 0.1707 | H7: 1.5
A8: 16 | B8: 0.064 | C8: 0.761 | D8: 0.0832 | E8: 0.439 | F8: 0.775 | G8: 0.1712 | H8: 1.892 | I8: 0.89 | J8: 0.3417 | K8: 8.659 | M8: 0.794 | N8: 0.3657 | O8: 8.85 | P8: 0.509 | Q8: 0.258 | R8: 2.821 | S8: 0.374 | T8: 0.383 | U8: 4.58
A9: 14 | B9: 0.079 | C9: 0.95 | D9: 0.0846 | E9: 0.567 | F9: 0.968 | G9: 0.1721 | H9: 2.392 | I9: 1.113 | J9: 0.3427 | K9: 10.883 | M9: 0.992 | N9: 0.3663 | O9: 11.092 | P9: 0.712 | Q9: 0.25 | R9: 3.701 | S9: 0.524 | T9: 0.373 | U9: 6.08
A10: 12 | B10: 0.109 | C10: 1.331 | D10: 0.0879 | E10: 0.857 | F10: 1.356 | G10: 0.1741 | H10: 3.425 | I10: 1.56 | J10: 0.3448 | K10: 15.459 | M10: 1.39 | N10: 0.3677 | O10: 15.65 | P10: 1.184 | Q10: 0.237 | R10: 5.537 | S10: 0.883 | T10: 0.355 | U10: 9.26 | V10: 1.556 | W10: 0.682 | X10: 60.411
A11: 10 | B11: 0.138 | C11: 1.712 | D11: 0.0919 | E11: 1.205 | F11: 1.744 | G11: 0.1766 | H11: 4.533 | I11: 2.008 | J11: 0.3472 | K11: 20.183 | M11: 1.788 | N11: 0.3693 | O11: 20.317 | P11: 1.717 | Q11: 0.228 | R11: 7.433 | V11: 2.003 | W11: 0.684 | X11: 78.175
A12: 8 | B12: 0.168 | C12: 2.098 | D12: 0.0967 | E12: 1.635 | F12: 2.133 | G12: 0.1795 | H12: 5.725 | I12: 2.458 | J12: 0.3499 | K12: 25.091 | M12: 2.186 | N12: 0.3711 | O12: 25.092 | V12: 2.449 | W12: 0.686 | X12: 96.163
A13: 7 | B13: 0.188 | V13: 2.739 | W13: 0.688 | X13: 108
A14: 5 | B14: 0.218 | V14: 3.199 | W14: 0.69 | X14: 126.922
A15: 3 | B15: 0.249 | V15: 3.65 | W15: 0.692 | X15: 146.172
A16: 1 | B16: 0.28 | V16: 4.119 | W16: 0.695 | X16: 165.836
B17: 0.318 | V17: 4.671 | W17: 0.698 | X17: 190
B18: 0.38 | V18: 5.613 | W18: 0.704 | X18: 232
B21: Aluminum | C21: 1½ x ¼ (corrugated aluminum pipe) | F21: 2⅔ x ½ (corrugated aluminum pipe) | I21: 3 x 1 (corrugated aluminum pipe) | L21: 6 x 1 (corrugated aluminum pipe) | P21: ¾ x ¾ x 7½ (aluminum spiral rib pipe) | S21: ¾ x 1 x 11½ (aluminum spiral rib pipe) | V21: 9 x 2½ (aluminum structural plate pipe)
B22: Thickness (in) | C22: As (in2/ft) | D22: r (in) | E22: I x 10-3(in4/in) | F22: As (in2/ft) | G22: r (in) | H22: I x 10-3(in4/in) | I22: As (in2/ft) | J22: r (in) | K22: I x 10-3(in4/in) | L22: As (in2/ft) | M22: Effective As | N22: r (in) | O22: I x 10-3(in4/in) | P22: As (in2/ft) | Q22: r (in) | R22: I x 10-3(in4/in) | S22: As (in2/ft) | T22: r (in) | U22: I x 10-3(in4/in) | V22: As (in2/ft) | W22: r (in) | X22: I x 10-3(in4/in)
B23: 0.048 | C23: 0.608 | D23: 0.0824 | E23: 0.344
B24: 0.06 | C24: 0.761 | D24: 0.0832 | E24: 0.349 | F24: 0.775 | G24: 0.1712 | H24: 1.892 | I24: 0.89 | J24: 0.3417 | K24: 8.659 | L24: 0.775 | M24: 0.387 | N24: 0.3629 | O24: 8.505 | P24: 0.415 | Q24: 0.272 | R24: 2.558 | S24: 0.312 | T24: 0.396 | U24: 4.08
B25: 0.075 | F25: 0.968 | G25: 0.1721 | H25: 2.392 | I25: 1.118 | J25: 0.3427 | K25: 10.883 | L25: 0.968 | M25: 0.484 | N25: 0.363 | O25: 10.631 | P25: 0.569 | Q25: 0.267 | R25: 3.372 | S25: 0.427 | T25: 0.391 | U25: 5.45
B26: 0.105 | F26: 1.356 | G26: 0.1741 | H26: 3.425 | I26: 1.56 | J26: 0.3448 | K26: 15.459 | L26: 1.356 | M26: 0.678 | N26: 0.3636 | O26: 14.34 | P26: 0.914 | Q26: 0.258 | R26: 5.073 | S26: 0.697 | T26: 0.38 | U26: 8.39
B27: 0.135 | F27: 1.745 | G27: 0.1766 | H27: 4.533 | I27: 2.088 | J27: 0.3472 | K27: 20.183 | L27: 1.744 | M27: 0.872 | N27: 0.3646 | O27: 19.319 | P27: 1.29 | Q27: 0.252 | R27: 6.826 | S27: 1.009 | T27: 0.369 | U27: 11.48
B28: 0.164 | F28: 2.13 | G28: 0.1795 | H28: 5.725 | I28: 2.458 | J28: 0.3499 | K28: 25.091 | L28: 2.133 | M28: 1.066 | N28: 0.3656 | O28: 23.76
B29: 0.1 | V29: 1.404 | W29: 0.8438 | X29: 83.065
B30: 0.125 | V30: 1.75 | W30: 0.8444 | X30: 103.991
B31: 0.15 | V31: 2.1 | W31: 0.8449 | X31: 124.883
B32: 0.175 | V32: 2.449 | W32: 0.8454 | X32: 145.895
B33: 0.2 | V33: 2.799 | W33: 0.846 | X33: 166.959
B34: 0.225 | V34: 3.149 | W34: 0.8468 | X34: 188.179
B35: 0.25 | V35: 3.501 | W35: 0.8473 | X35: 209.434

Sheet seam strength tables
A1: Minimum Longitudinal Seam Strength | F1: From AASHTO LRFD SECTION 12, APPENDIX A12
A2: Steel | C2: 2 x ½ & 2⅔ x ½ (corrugated steel pipe) - Riveted or Spot Welded | F2: 3 x 1 (corrugated steel pipe) - Riveted or Spot Welded | H2: 6 x 2 (steel structural plate pipe)
A3: Gage # | B3: Thickness (in) | C3: Rivet Size (in) | D3: Single Rivets (k/ft) | E3: Double Rivets (k/ft) | F3: Rivet Size (in) | G3: Double Rivets (k/ft) | H3: Diameter (in) | I3: 4 Bolts/ft (k/ft) | J3: 6 Bolts/ft (k/ft) | K3: 8 Bolts/ft (k/ft)
A4: 16 | B4: 0.064 | C4: 0.3125 | D4: 16.7 | E4: 21.6 | F4: ⅜ | G4: 28.7
A5: 14 | B5: 0.079 | D5: 18.2 | E5: 29.8 | G5: 35.7
A6: 12 | B6: 0.109 | C6: ⅜ | D6: 23.4 | E6: 46.8 | F6: 0.4375 | G6: 53 | H6: ¾ | I6: 43
A7: 10 | B7: 0.138 | D7: 24.5 | E7: 49 | G7: 63.7 | I7: 62
A8: 8 | B8: 0.168 | D8: 25.6 | E8: 51.3 | G8: 70.7 | I8: 81
A9: 7 | B9: 0.188 | I9: 93
A10: 5 | B10: 0.218 | I10: 112
A11: 3 | B11: 0.249 | I11: 132
A12: 1 | B12: 0.28 | I12: 144 | J12: 180 | K12: 194
B13: 0.318 | H13: ⅞ | K13: 235
B14: 0.38 | K14: 285
B16: Aluminum | C16: 2 x ½ & 2⅔ x ½ (corrugated aluminum pipe) - Riveted | F16: 3 x 1 (corrugated aluminum pipe) - Riveted | H16: 6 x 1 (corrugated aluminum pipe) - Riveted | J16: 9 x 2½ (aluminum structural plate pipe)
B17: Thickness (in) | C17: Rivet Size (in) | D17: Single Rivets (k/ft) | E17: Double Rivets (k/ft) | F17: Rivet Size (in) | G17: Double Rivets (k/ft) | H17: Rivet Size (in) | I17: Double Rivets (k/ft) | J17: Diameter (in) | K17: steel bolts | L17: aluminum bolts
K18: 5⅓ Bolts/ft (k/ft) | L18: 5⅓ Bolts/ft (k/ft)
B19: 0.06 | C19: 0.3125 | D19: 9 | E19: 14 | F19: ⅜ | G19: 16.5 | H19: 0.5 | I19: 16
B20: 0.075 | D20: 9 | E20: 18 | G20: 20.5 | I20: 19.9
B21: 0.105 | C21: ⅜ | D21: 15.6 | E21: 31.5 | F21: 0.5 | G21: 28 | I21: 27.9
B22: 0.135 | D22: 16.2 | E22: 33 | G22: 42 | I22: 35.9
B23: 0.164 | D23: 16.8 | E23: 34 | G23: 54.5 | I23: 43.5
B24: 0.1 | J24: ¾ | K24: 28 | L24: 26.4
B25: 0.125 | K25: 41 | L25: 34.8
B26: 0.15 | K26: 54.1 | L26: 44.4
B27: 0.175 | K27: 63.7 | L27: 52.8
B28: 0.2 | K28: 73.4 | L28: 52.8
B29: 0.225 | K29: 83.2 | L29: 52.8
B30: 0.25 | K30: 93.1 | L30: 52.8

Sheet NCSPA Design Data Sheet No 19
